Workbook

Sheet Sheet1
A1: 20121025 | B1: =+AC1 -> 411 | C1: =AD1 -> 有限会社 戸張計算センター | H1: 資本金＞＞＞ | I1: =AF30/1000 -> 68000 | J1: 前期 | K1: 当期 | M1: 仕訳枚数 | N1: 経営自己診断システム | P1: 決算書項目内容入力 | R1: さん | U1: 1会社概要 | W1: 経営財務報告書 | Z1: 20130802 | AC1: 411 | AD1: 有限会社 戸張計算センター
A2: こすもす利益計画 | B2: 決算期 | C2: 決算'担当 | E2: 下は選択ﾘｽﾄ | I2: 割引手形 | J2: 0 | K2: 0 | L2: =+K2-J2 -> 0 | M2: =+AE51 -> 1226 | N2: 金額単位千円 | U2: 社名 | V2: =AD1 -> 有限会社 戸張計算センター | X2: 作成 | Z2: 戸張道也 | AA2: 設立年月日 | AD2: 決算年月日 | AE2: 250430
A3: 2012-09-11 | B3: =AE2 -> 250430 | C3: =AE3 -> 0 | E3: 成長力 | H3: 計画未 | I3: 裏書手形 | J3: 0 | K3: 0 | L3: =+K3-J3 -> 0 | M3: =+AF51 -> 0 | N3: 貸借対照表 | R3: 損益計算書 | U3: 住所 | V3: 川崎市高津区二子５－１－１５ | Z3: 電話番号 | AA3: ０４４－８３３－４３６１ | AD3: 担当者
A4: 項目 | B4: 総合評価 | C4: =+H1038 -> 良 | D4: 個別評価）＞＞＞ | E4: =IF(E3="収益力",G1039,IF(E3="資金力",G1040,IF(E3="安全力",G1041,IF(E34="成長力",G1042,G1043)))) -> 良 | L4: 計画貸借照合 | M4: =$B$1130 -> 55338.09134 | N4: 流動資産合計 | O4: =+D37 -> 4184.914 | P4: 流動負債合計 | Q4: =+D50 -> 6703.044 | R4: 売上高 | S4: =+D6 -> 26032.225 | T4: 修正長期借入金 | U4: 業種 | V4: 不動産 | W4: 事業内容経営の沿革 | AD4: 貸借表 | AE4: 当期末残 | AF4: 前期末残 | AG4: 前々期末残 | AI4: 損益表 | AJ4: 当期末残 | AK4: 前期末残 | AL4: 前々期末残
A5: Ｐ/Ｌ | B5: 前期 | D5: 当期 | E5: 増減 | F5: 前期構成比 | G5: 計画入力項目 | H5: 当期伸率 | I5: 当期構成比 | J5: 計画値 | K5: 計画増減 | L5: 計画伸率 | M5: 計画構成比 | N5: 現金・預金 | O5: =+D38 -> 2022.3 | P5: 短期借入金 | Q5: =+D54 -> 0 | R5: 売上総利益 | S5: =+D11 -> 26032.225 | U5: 代表者氏名 | V5: 戸張満江 | W5: 次期経営者数 | X5: 2 | Y5: 次期従業員数 | Z5: 0 | AA5: 次期計 | AB5: =X5+Z5 -> 2 | AD5: 現金預金 | AE5: 2022300 | AF5: 1257630 | AG5: 951826 | AI5: 売上高 | AJ5: 26032225 | AK5: 24328650 | AL5: 25513695
A6: 売上高 | B6: =+AK5/1000 -> 24328.65 | D6: =$AJ$5/1000 -> 26032.225 | E6: =+D6-B6 -> 1703.575 | F6: 1 | G6: 当期固定費 | H6: =IF((D6-B6=0),0,(+D6-B6)/ABS(B6)) -> 0.07002340861 | I6: 1 | J6: =+J11/M11 -> 27645.53706 | K6: =+J6-D6 -> 1613.31206 | L6: =+K6/D6 -> 0.06197365227 | M6: 1 | N6: 受取手形（割引分を除く） | O6: =+D39 -> 0 | P6: 長期借入金・社債 | Q6: =X38/1000 -> 39067 | R6: 営業利益 | S6: =+D13 -> -406.473 | T6: 修正資本金 | U6: 資本金 | V6: =AE30 -> 68000000 | W6: 経営者数 | X6: =AJ45 -> 2 | Y6: 従業員人数 | Z6: =AJ46 -> 1 | AA6: 計 | AB6: =X6+Z6 -> 3 | AD6: 受取手形 | AE6: 0 | AF6: 0 | AG6: 0 | AI6: 材料・仕入 | AJ6: 0 | AK6: 0 | AL6: 0
A7: 仕入・材料費 | B7: =+AK6/1000 -> 0 | D7: =+$AJ$6/1000 -> 0 | E7: 0 | F7: =+B7/$B$6 -> 0 | G7: =D17 -> 26438.698 | H7: 0 | I7: =+D7/$D$6 -> 0 | J7: =+$J$6*I7 -> 0 | K7: 0 | L7: =IF(D7=0,0,+K7/D7) -> 0 | M7: =+J7/$J$6 -> 0 | N7: 売掛金 | O7: =+D40 -> 1927.68 | P7: 資本合計 | Q7: =D62+D73 -> 88179.657 | R7: 受取利息配当金 | S7: =IF(+D31>0,0,+D31) -> 0 | U7: 株主役員 | V7: 氏名 | W7: 前々期報酬 | X7: 前期報酬 | Y7: 当期報酬 | Z7: 次期報酬見込み | AA7: コメント．問題点 | AD7: 売掛債権 | AE7: 1927680 | AF7: 1778760 | AG7: 1442480 | AI7: 外注・加工 | AJ7: 0 | AK7: 0 | AL7: 0
A8: 外注費 | B8: =(+AK7)/1000 -> 0 | D8: =(+$AJ$7)/1000 -> 0 | E8: 0 | F8: 0 | G8: 当期変動費 | H8: 0 | I8: 0 | J8: =+$J$6*I8 -> 0 | K8: 0 | L8: =IF(D8=0,0,+K8/D8) -> 0 | M8: =+J8/$J$6 -> 0 | N8: 棚卸資産 | O8: =+D42 -> 0 | R8: 支払利息割引料 | S8: =IF(+D31<0,0,+D31) -> 960.426 | U8: 代表取締役 | V8: 戸張満江 | W8: 6000000 | X8: 6000000 | Y8: 2400000 | Z8: 2400000 | AD8: 棚卸資産 | AE8: 0 | AF8: 0 | AG8: 0 | AI8: 経費 | AJ8: 0 | AK8: 0 | AL8: 0
A9: 経費その他 | B9: =(+AK8+AK9)/1000 -> 0 | D9: =(+$AJ$8+$AJ$9)/1000 -> 0 | E9: 0 | F9: 0 | G9: =D10 -> 0 | H9: 0 | I9: 0 | J9: =+$J$6*I9 -> 0 | K9: 0 | L9: =IF(D9=0,0,+K9/D9) -> 0 | M9: =+J9/$J$6 -> 0 | N9: 固定資産合計 | O9: =D44 -> 141267.212 | U9: 同 | V9: 戸張奈穂子 | W9: 1200000 | X9: 1800000 | Y9: 1200000 | Z9: 1200000 | AD9: その他流動資産 | AE9: 234934 | AF9: 270134 | AG9: 305334 | AI9: その他 | AJ9: 0 | AK9: 0 | AL9: 0
A10: 変動費計 | B10: =SUM(B7:B9) -> 0 | D10: =$D$7+$D$8+$D$9 -> 0 | E10: 0 | F10: 0 | H10: 0 | I10: 0 | J10: =+$J$6*I10 -> 0 | K10: 0 | L10: =IF(D10=0,0,+K10/D10) -> 0 | M10: =+J10/$J$6 -> 0 | N10: 有形固定資産合計 | O10: =D45+D46 -> 131184.958 | P10: 脚注項目 | R10: 経常利益 | S10: =+D12 -> -1175.885 | U10: 同 | V10: 戸張道也 | W10: 3600000 | X10: 0 | Y10: 6000000 | Z10: 6000000 | AD10: 流動資産計 | AE10: 4184914 | AF10: 3306524 | AG10: 2699640 | AI10: 変動費 | AJ10: 0 | AK10: 0 | AL10: 0
A11: 貢献利益・限界利益・付加価値 | B11: =+AK11/1000 -> 24328.65 | D11: =+$AJ$11/1000 -> 26032.225 | E11: 1703.575 | F11: 1 | G11: （１）計画限界利益＞Ｍ１１ | H11: 0.07002340861 | I11: 1 | J11: =+J12+J17-J34 -> 27645.53706 | K11: 1613.31206 | L11: % | M11: 1 | N11: 土地建設勘定* | O11: =D46 -> 71309.49 | P11: 受取手形割引高 | Q11: =K2 -> 0 | R11: 減価償却実施額 | S11: =+D18 -> 1847.392 | AD11: 土地建設仮勘定 | AE11: 71309490 | AF11: 71309490 | AG11: 53309490 | AI11: 付加価値 | AJ11: 26032225 | AK11: 24328650 | AL11: 25513695
A12: 経常利益（営業利益＋金利＋雑収入） | B12: =(+AK31+AK32+AK33)/1000 -> 1356.065 | D12: =(+$AJ$31+$AJ$32+$AJ$33)/1000 -> -1175.885 | E12: -2531.95 | F12: 0.05573942656 | G12: （２）経常利益計画＞Ｊ１２ | H12: 0 | I12: -0.04517036097 | J12: 1200 | K12: 0 | L12: =+K12/D12 -> 0 | M12: 0.367 | P12: 受取手形裏書譲渡高 | Q12: =K3 -> 0 | AD12: 設備資産 | AE12: 59875468 | AF12: 61722860 | AG12: 58405859 | AI12: 経営者報酬 | AJ12: 0 | AK12: 0 | AL12: 0
A13: 営業利益 | B13: =+AK31/1000 -> 2019.966 | D13: =+$AJ$31/1000 -> -406.473 | E13: -2426.439 | F13: 0.08302828147 | H13: =IF((D13-B13=0),0,(+D13-B13)/B13) -> -1.201227644 | I13: -0.01561422429 | J13: =+J12+J34 -> 400 | K13: 806.473 | L13: =+K13/D13 -> -1.984075203 | M13: 0.366 | N13: 資産合計 | O13: =+D49 -> 145452.126 | P13: 期末従業員数 | Q13: =+D35 -> 3 | U13: 計 | V13: 計 | W13: =SUM(W8:W12) -> 10800000 | X13: =SUM(X8:X12) -> 7800000 | Y13: =SUM(Y8:Y12) -> 9600000 | Z13: =SUM(Z8:Z12) -> 9600000 | AD13: その他固定資産 | AE13: 10082254 | AF13: 9382254 | AG13: 7932254 | AI13: 従業員給与 | AJ13: 11449750 | AK13: 11252470 | AL13: 10440000
A14: 利益(税引前） | B14: =+AK37/1000 -> 1356.065 | D14: =+$AJ$37/1000 -> -1175.885 | E14: -2531.95 | F14: 0.05573942656 | G14: 当期損益分岐点 | H14: =IF((D14-B14=0),0,(+D14-B14)/ABS(B14)) -> -1.867130263 | I14: -0.04517036097 | J14: 計画値 | K14: 計画増減 | L14: 計画伸率 | M14: 計画構成比 | N14: 前期決算書入力項目 | V14: 氏名 | W14: 前々期賃借料 | X14: 前期賃借料 | Y14: 当期賃借料 | Z14: 次期賃借料見込み | AA14: コメント．問題点 | AD14: 固定資産計 | AE14: 141267212 | AF14: 142414604 | AG14: 119647603 | AI14: 退職・法定福利費 | AJ14: 4833 | AK14: 732 | AL14: 0
A15: 法人税等 | B15: =+AK38/1000 -> 180 | D15: =+$AJ$38/1000 -> 180 | E15: 0 | F15: 0.007398684267 | G15: =G7/(1-D10/D6) -> 26438.698 | H15: 0 | I15: 損益分岐点 | J15: =+J17/(1-J10/J6) -> 25645.53706 | K15: =+J15-O19 -> 0 | L15: =+K15/O19 -> 0 | M15: =+J15/$J$6 -> 0.9276555925 | N15: 前期総資産 | O15: =B49 -> 145721.128 | P15: 前期資本合計 | Q15: =B62+B73 -> 87005.542 | R15: 前期売上高 | S15: =B6 -> 24328.65 | U15: 坂戸家賃 | V15: 戸張道也 | W15: 3600000 | X15: 2400000 | Y15: 2400000 | Z15: 1200000 | AA15: 坂戸は地代み変更 | AD15: 資産計 | AE15: 145452126 | AF15: 145721128 | AG15: 122347243 | AI15: 福利厚生費 | AJ15: 125000 | AK15: 0 | AL15: 0
A16: 当期純利益 | B16: =+AK39/1000 -> 1176.065 | D16: =+$AJ$39/1000 -> -1355.885 | E16: -2531.95 | F16: 0.04834074229 | G16: （３）計画固定費伸び率＞Ｊ１６ | H16: -2.152899712 | J16: -0.03 | K16: -10 | L16: =J16-H17 -> -0.2151303286 | M16: -1.085166113e-06 | U16: 溝口ビル２０２ | V16: 戸張満江 | W16: 1200000 | X16: 1440000 | Y16: 1440000 | Z16: 1440000 | AA16: 固定資産税の三倍 | AD16: 支払手形 | AE16: 0 | AF16: 0 | AG16: 0 | AI16: 人件費 | AJ16: 11579583 | AK16: 11253202 | AL16: 10440000
A17: 固定費計 | B17: =+AK30/1000 -> 22308.684 | D17: =+$AJ$30/1000 -> 26438.698 | E17: 4130.014 | F17: 0.9169717185 | G17: 固定費計画計＞Ｊ１７ | H17: 0.1851303286 | I17: =+D17/$D$6 -> 1.015614224 | J17: =+D17*(1+J16) -> 25645.53706 | K17: =D17-J17 -> 793.16094 | L17: =+K17/D17 -> 0.03 | M17: 0.9276555925 | N17: 現状と計画 | AD17: 買掛金 | AE17: 0 | AF17: 0 | AG17: 0 | AI17: 経営者賃借料
A18: 減価償却費(1) | B18: =+AK19/1000 -> 1682.999 | D18: =+$AJ$19/1000 -> 1847.392 | E18: 164.393 | F18: 0.0691776568 | G18: 減価償却費計画＞Ｊ１８ | H18: 0.09767860825 | I18: =+D18/$D$17 -> 0.06987454526 | J18: 1800 | K18: =+J18-D18 -> -47.392 | L18: =+K18/D18 -> -0.02565346174 | M18: =+J18/$J$6 -> 0.06510996679 | N18: 当期損益分岐点 | O18: 計画損益分岐点 | P18: 差異 | Q18: 伸び率 | R18: 判断 | V18: 計 | W18: =SUM(W15:W17) -> 4800000 | X18: =SUM(X15:X17) -> 3840000 | Y18: =SUM(Y15:Y17) -> 3840000 | Z18: =SUM(Z15:Z17) -> 2640000 | AD18: 未払費用 | AE18: 4436526 | AF18: 9219436 | AG18: 9054916 | AI18: 賃借料 | AJ18: 5880000 | AK18: 5880000 | AL18: 7080000
A19: 経営者給料 | B19: =+AK43/1000 -> 0 | D19: =+$AJ$43/1000 -> 0 | E19: 0 | F19: 0 | G19: 経営者給料計画＞Ｊ１９ | H19: 0 | I19: 0 | J19: =Z13/1000 -> 9600 | K19: 9600 | L19: =IF(K16=0,0,+K19/D19) ->  | M19: 0.3472531562 | N19: =+$D$17/(1-$D$10/$D$6) -> 26438.698 | O19: =+$J$15 -> 25645.53706 | P19: =O19-N19 -> -793.16094 | Q19: =($O$19-$N$19)/$N$19 -> -0.03 | R19: 実現すれば良 | U19: 2業績推移利益計画 | V19: 前々期 | W19: 前期 | X19: 当期 | Y19: 次期見込み | Z19: 利益計画値 | AA19: 当期 | AB19: 計画値 | AD19: 短期借入金 | AE19: 0 | AF19: 0 | AG19: 0 | AI19: 減価償却費 | AJ19: 1847392 | AK19: 1682999 | AL19: 1717218
A20: 従業員給料 | B20: =+B21-B19 -> 11253.202 | D20: =+$D$21-$D$19 -> 11579.583 | E20: 326.381 | F20: 0.4625493811 | G20: 従業員給料計画＞Ｊ２０ | H20: 0.02900338944 | I20: 0.4379785646 | J20: =J21-J19 -> 1200 | K20: -10379.583 | L20: =+K20/D20 -> -0.8963693252 | M20: 0.04340664453 | N20: 当期売上高 | O20: 計画売上高 | U20: 売上高 | V20: =AL5 -> 25513695 | W20: =B6*1000 -> 24328650 | X20: =D6*1000 -> 26032225 | Y20: =O21*1000 -> 27645537.06 | Z20: 損益分岐点 | AA20: =G15*1000 -> 26438698 | AB20: =J15 -> 25645.53706 | AD20: 前受金 | AE20: 1468425 | AF20: 1065225 | AG20: 1255275 | AI20: 租税公課 | AJ20: 1899900 | AK20: 539410 | AL20: 1033100
A21: 人件費計(2) | B21: =+AK16/1000 -> 11253.202 | D21: =+$AJ$16/1000 -> 11579.583 | E21: 326.381 | F21: 0.4625493811 | G21: 人件費計計画＞Ｊ２１ | H21: 0.02900338944 | I21: 0.4379785646 | J21: 10800 | K21: -779.583 | L21: -0.06732392695 | M21: 0.3906598008 | N21: =+$D$6 -> 26032.225 | O21: =+$J$6 -> 27645.53706 | P21: =$N$21-$O$21 -> -1613.31206 | Q21: =($O$21-$N$21)/$N$21 -> 0.06197365227 | R21: 月１００万円売上増 | U21: 営業利益 | V21: =AL31 -> 2328999 | W21: =B13*1000 -> 2019966 | X21: =D13*1000 -> -406473 | Y21: =Y22-J34*1000 -> 2000000 | Z21: 限界利益率 | AA21: =I11 -> 1 | AB21: =M11 -> 1 | AD21: 割引手形 | AE21: 0 | AF21: 0 | AG21: 0 | AI21: 修繕費 | AJ21: 791425 | AK21: 98346 | AL21: 108389
A22: 経営者賃借料 | B22: =+AK49/1000 -> 0 | D22: =+$AJ$49/1000 -> 0 | E22: 0 | F22: 0 | G22: 経営者賃借料計画＞Ｊ２２ | H22: 0 | I22: 0 | J22: =Z18/1000 -> 2640 | K22: 2640 | L22: =IF(D22=0,0,+K22/D22) -> 0 | M22: 0.09549461797 | N22: 当期売上総利益 | O22: 計画売上総利益画固定費 | U22: 経常利益 | V22: =AL31+AL32+AL33 -> 1623735 | W22: =B12*1000 -> 1356065 | X22: =D12*1000 -> -1175885 | Y22: =O27*1000 -> 1200000 | Z22: 固定費伸率 | AA22: =H17 -> 0.1851303286 | AB22: =J16 -> -0.03 | AD22: 未払税金等 | AE22: 180000 | AF22: 180000 | AG22: 180000 | AI22: 電気水道燃料 | AJ22: 960011 | AK22: 893179 | AL22: 876452
A23: 其の他賃借料 | B23: =+B24-B22 -> 5880 | D23: =+$D$24-$D$22 -> 5880 | E23: 0 | F23: 0.2416903527 | G23: 其の他賃借料 | H23: 0 | I23: 0.2224012695 | J23: 2000 | K23: 0 | L23: 0 | M23: 0.07234440755 | N23: =$D$11 -> 26032.225 | O23: =+$J$11 -> 27645.53706 | P23: =$N$23-$O$23 -> -1613.31206 | Q23: =($O$23-$N$23)/$N$23 -> 0.06197365227 | R23: 月１０万円増 | U23: 当期利益 | V23: =AL39 -> 1443735 | W23: =B16*1000 -> 1176065 | X23: =D16*1000 -> -1355885 | Y23: =Y22+J33*1000 -> 1200000 | Z23: 人件費 | AA23: =D21*1000 -> 11579583 | AB23: =J21*1000 -> 10800000 | AD23: その他流動負債 | AE23: 618093 | AF23: 581650 | AG23: 613050 | AI23: 設備費 | AJ23: 11378728 | AK23: 9093934 | AL23: 10815159
A24: 賃借料計(3) | B24: =+AK18/1000 -> 5880 | D24: =+$AJ$18/1000 -> 5880 | E24: 0 | F24: 0.2416903527 | G24: 賃借料計画 | H24: 0 | I24: 0.2224012695 | J24: =SUM(J22:J23) -> 4640 | K24: -1240 | L24: -0.2108843537 | M24: 0.1678390255 | N24: 当期固定費 | O24: 計画固定費 | U24: 減価償却費 | V24: =AL19 -> 1717218 | W24: =B18*1000 -> 1682999 | X24: =D18*1000 -> 1847392 | Y24: =J18*1000 -> 1800000 | Z24: 賃借料 | AA24: =D24*1000 -> 5880000 | AB24: =J24*1000 -> 4640000 | AD24: 流動負債計 | AE24: 6703044 | AF24: 11046311 | AG24: 11103241 | AI24: 交際・会議費 | AJ24: 0 | AK24: 0 | AL24: 0
A25: 租税公課(4) | B25: =+AK20/1000 -> 539.41 | D25: =+$AJ$20/1000 -> 1899.9 | E25: 1360.49 | F25: 0.02217180156 | G25: 租税公課計画＞Ｊ２５ | H25: 2.522181643 | I25: 0.07186057347 | J25: 1500 | K25: -399.9 | L25: -0.2104847624 | M25: 0.05425830566 | N25: =+$D$17 -> 26438.698 | O25: =+$J$17 -> 25645.53706 | P25: =$N$25-$O$25 -> 793.16094 | Q25: =($O$25-$N$25)/$N$25 -> -0.03 | R25: 月１０万円減 | U25: 経営期待報酬賃借料 | V25: =W18+W13 -> 15600000 | W25: =X18+X13 -> 11640000 | X25: =Y18+Y13 -> 13440000 | Y25: =Z18+Z13 -> 12240000 | Z25: 其の他経費 | AA25: =(D25+D26+D27+D28)*1000+W24 -> 8814722 | AB25: =(J25+J26+J27+J28)*1000+Y24 -> 10205537.06 | AD25: 経営者借入金 | AE25: 0 | AF25: 0 | AG25: 0 | AI25: 保険料 | AJ25: 474440 | AK25: 271640 | AL25: 271640
A26: 修繕費・水道光熱費(5) | B26: =(+AK21+AK22)/1000 -> 991.525 | D26: =(+$AJ$21+$AJ$22)/1000 -> 1751.436 | E26: 759.911 | F26: 0.04075544677 | G26: 修繕費・水道光熱費計画＞Ｊ２６ | H26: 6 | I26: 0.06624516835 | J26: 1800 | K26: 600 | L26: 0.3425760348 | M26: 0.06510996679 | N26: 当期経常利益 | O26: 計画経常利益 | U26: 3財務比率 | V26: 前期 | W26: 当期 | X26: 比率 | Y26: 前期 | Z26: 当期 | AA26: 比率 | AB26: 当期 | AD26: 長期借入金 | AE26: 55155425 | AF26: 34725275 | AG26: 35470525 | AI26: 広告宣伝費 | AJ26: 197820 | AK26: 149730 | AL26: 112140
A27: 政策費(交際費・会費等）(6) | B27: =+AK28/1000 -> 433.87 | D27: =+$AJ$28/1000 -> 684.76 | E27: 250.89 | F27: 0.01783370635 | G27: 政策費(交際費・会費等）計画＞Ｊ２７ | H27: 0.5782607694 | I27: 0.02589991383 | J27: 700 | K27: 15.24 | L27: 0.0222559729 | M27: 0.02532054264 | N27: =+$D$12 -> -1175.885 | O27: =$J$12 -> 1200 | P27: =$N$27-$O$27 -> -2375.885 | Q27: =($O$27-$N$27)/$N$27 -> -2.020507958 | R27: 第一歩は損益ゼロ | U27: 売上高営業利益率 | V27: =E533 -> 0.08302828147 | W27: =H533 -> -0.01561422429 | X27: 粗利益成長率 | Y27: =(AK11-AL11)/AL11 -> -0.04644740795 | Z27: =H543 -> 0.07002340861 | AA27: CFﾏ－ｼﾞﾝ | AB27: =H560 -> 0.03204082632 | AC27: CFﾏ－ｼﾞﾝ | AD27: その他固定負債 | AE27: 0 | AF27: 15000000 | AG27: 0 | AI27: 図書会費教育費 | AJ27: 12500 | AK27: 12500 | AL27: 12500
A28: その他経費(7) | B28: =+AK29/1000 -> 1527.678 | D28: =+$AJ$29/1000 -> 2795.627 | E28: 1267.949 | F28: 0.06279337325 | G28: その他経費計画 | H28: 0.8299844601 | I28: 0.105739965 | J28: =+J17-J18-J21-J24-J25-J26-J27 -> 4405.53706 | K28: 1609.91006 | L28: =+K28/D28 -> 0.5758672598 | M28: 0.1593579843 | N28: CF計算書 | O28: 計画ＣＦ計算書 | U28: 売上高経常利益率 | V28: =E534 -> 0.05573942656 | W28: =H534 -> -0.04517036097 | X28: 一人当り売上高 | Y28: =E554 -> 8109.55 | Z28: =H554 -> 8677.408333 | AA28: =D564 -> 有利子固定負債/フリーキャッシュフロー | AB28: =H564 -> 291.340403 | AC28: =F564 -> 収益力・安定力 | AD28: 固定負債計 | AF28: 49725275 | AG28: 35470525 | AI28: 政策費 | AJ28: 684760 | AK28: 433870 | AL28: 396280
A29: 事業税 | B29: =+AK55/1000 -> 0 | D29: =+$AJ$55/1000 -> 0 | E29: 0 | F29: 0 | G29: 事業税計画＞Ｊ２９ | H29: 0 | I29: 0 | J29: 0 | K29: 0 | L29: =IF(D29=0,0,K29/D29) -> 0 | M29: 0 | N29: OK | O29: =+A1001 -> 0 | U29: 総資本経常利益率 | V29: =E541 -> 0.009305891456 | W29: =H541 -> -0.008084343848 | X29: 労働分配率 | Y29: =E559 -> 0.4625493811 | Z29: =H559 -> 0.4448172601 | AA29: 労働装備率千円 | AB29: =H558 -> 19958.48933 | AC29: 粗利益成長率 | AD29: 負債計 | AE29: 61858469 | AF29: 60771586 | AG29: 46573766 | AI29: その他経費 | AJ29: 2795627 | AK29: 1527678 | AL29: 1533257
A30: 消費税 | B30: =+AK56/1000 -> 736.7 | D30: =+$AJ$56/1000 -> 580.7 | E30: -156 | F30: 0.03028117055 | G30: 消費税計画＞Ｊ３０ | H30: -0.2117551242 | I30: 0.02196401653 | J30: 600 | K30: 19.3 | L30: 0.03323574996 | M30: 0.02170332226 | U30: 実質自己資本比率 | V30: =W70/W74 -> 0.6028282803 | W30: =X70/X74 -> 0.6853257133 | X30: 借入金月商倍率 | Y30: =E551 -> 15.70000802 | Z30: =H551 -> 18.0086028 | AA30: 固定長期適合率 | AB30: =H549 -> 1.689927407 | AC30: 固定長期適合率 | AD30: 資本金 | AE30: 68000000 | AF30: 68000000 | AG30: 60000000 | AI30: 固定費１ | AJ30: 26438698 | AK30: 22308684 | AL30: 23184696
A31: 金利(純金利） | B31: =+AK32/1000*-1 -> 664.074 | D31: =+$AJ$32/1000*-1 -> 960.426 | E31: 296.352 | F31: 0.02729596587 | G31: 金利(純金利）計画＞Ｊ３１ | H31: 0.4462635188 | I31: 0.0363265241 | J31: 900 | K31: -60.426 | L31: -0.0629158311 | M31: 0.0325549834 | S31: 前前々期 | U31: ４キャッシュフロ－ | V31: 前々期 | W31: 前期 | X31: 当期 | Y31: 次期見込み | Z31: コメント．問題点 | AD31: 準備金 | AE31: 0 | AF31: 0 | AG31: 0 | AI31: 営業利益 | AJ31: -406473 | AK31: 2019966 | AL31: 2328999
A32: 雑収入 | B32: =+AK33/1000 -> 0.173 | D32: =+$AJ$33/1000 -> 191.014 | E32: 190.841 | F32: 7.110957657e-06 | G32: 雑収入計画＞Ｊ３２ | H32: 1103.127168 | I32: 0.007224788452 | J32: 100 | K32: 0 | L32: 0 | M32: 0.003617220377 | U32: 経営期待営業ＣＦ | V32: =V21+V24+V25 -> 19646217 | W32: =W21+W24+W25 -> 15342965 | X32: =X21+X24+X25 -> 14880919 | Y32: =Y21+Y24+Y25 -> 16040000 | Z32: 経営者期待報賃借料を含む。 | AD32: 剰余金 | AE32: 15593657 | AF32: 16949542 | AG32: 15773477 | AI32: 金利 | AJ32: -960426 | AK32: -664074 | AL32: -714773
A33: 特別損益 | B33: =(+AK36)/1000 -> 0 | D33: =(+$AJ$36)/1000 -> 0 | E33: 0 | F33: 0 | G33: 特別損益計画＞Ｊ３３ | H33: 0 | I33: 0 | J33: 0 | K33: 0 | M33: 0 | S33: 設備資産 | T33: =113432567-T32 -> 113432567 | U33: 設備資産増減 | V33: =AC25+V24 -> 1717218 | W33: =AC13+W24 -> 1682999 | X33: =X24 -> 1847392 | Y33: =J45*1000 -> 500000 | Z33: 平均経営期待営業キャッシュフロ－ | AB33: =(Y32+X32+W32+V32)/4 -> 16477525.25 | AD33: 資本計 | AE33: 83593657 | AF33: 84949542 | AG33: 75773477 | AI33: 雑収入 | AJ33: 191014 | AK33: 173 | AL33: 9509
A34: 営業外収支 | B34: =-+B31+B32 -> -663.901 | D34: =-$D$31+$D$32 -> -769.412 | E34: -105.511 | F34: -0.02728885491 | G34: 営業外収支計画 | H34: -0.1589258037 | I34: -0.02910173565 | J34: =-J31+J32 -> -800 | K34: -30.588 | L34: 0.03975503371 | M34: -0.02893776302 | S34: その他固定資産 | T34: =1342254+5790000 -> 7132254 | U34: 小規模同族企業ＦＣ | V34: =V32-V33 -> 17928999 | W34: =W32-W33 -> 13659966 | X34: =X32-X33 -> 13033527 | Y34: =Y32-Y33 -> 15540000 | Z34: 借入金返済原資は経営者期待ＦＣ－支払利息－経営者報酬－経営者賃借料で計算経営者 | AD34: 負債資本計 | AE34: 145452126 | AF34: 145721128 | AG34: 122347243 | AI34: その他差額 | AJ34: 0 | AK34: 0 | AL34: 0
A35: 社員数 | B35: =AK47 -> 3 | D35: =+$AJ$47 -> 3 | E35: 0 | G35: 社員数計画＞Ｊ３５ | H35: 0.02 | I35: 次期社員数 | J35: =AB5 -> 2 | K35: -1 | L35: -0.3333333333 | M35: 7.234440755e-05 | S35: 計 | T35: =T33+T34 -> 120564821 | U35: 支払利息 | V35: =AL32*-1 -> 714773 | W35: =AK32*-1 -> 664074 | X35: =AJ32*-1 -> 960426 | Y35: =J31*1000 -> 900000 | AE35: OK | AF35: OK | AG35: OK | AI35: 固定費２ | AJ35: 26247684 | AK35: 22308511 | AL35: 23175187
A36: Ｂ/Ｓ | B36: 前期 | D36: 当期 | E36: 増減 | F36: 流資回転率 流動資産負債は回転率で計画 | H36: 伸率 | I36: 構成比 | J36: 計画増加 | K36: 計画減少 | L36: 次期残高 | M36: 増減 | U36: 借入金返済原資 | V36: =V34-V35-W13-W18 -> 1614226 | W36: =W34-W35-Y13-Y18 -> -444108 | X36: =X34-X35-X25 -> -1366899 | Y36: =Y34-Y35-Y25 -> 2400000 | Z36: 経営者期待報酬賃借料支払いは困難。賃借料は未払→長期借入に振替、 | AE36: 0 | AF36: 0 | AG36: 0 | AI36: 臨時収益・費用 | AJ36: 0 | AK36: 0 | AL36: 0
A37: 流動資産 | B37: =+AF10/1000 -> 3306.524 | D37: =+AE10/1000 -> 4184.914 | E37: =+D37-B37 -> 878.39 | G37: 流動資産 | H37: =IF(B37=0,0,(+D37-B37)/B37) -> 0.2656535988 | I37: =+D37/$D$49 -> 0.02877176233 | J37: ********** | K37: ********** | L37: =SUM(L38:L43) -> 11335.58034 | M37: =+L37-D37 -> 7150.66634 | N37: 流動資産 | O37: L37 | S37: 前前々期有利子 | U37: 有利子長期借入金返済 | V37: =S38-V38 -> 6168000 | W37: =AG48-AF48 -> 1689000 | X37: =AF48-AE48 -> -7237000 | Y37: =Z87*-1 -> 4968000 | Z37: 借入金増加は１年後 | AD37: 照合 | AI37: 税引前利益 | AJ37: -1175885 | AK37: 1356065 | AL37: 1623735
A38: 現金預金 | B38: =+AF5/1000 -> 1257.63 | D38: =+AE5/1000 -> 2022.3 | E38: 764.67 | G38: 現金預金 | H38: 0.6080246177 | I38: 0.01390354377 | J38: ********** | K38: ********** | L38: =B1139 -> 8975.725543 | M38: =+L38-D38 -> 6953.425543 | N38: 現金預金 | O38: 38 | S38: =1890000+34834000+2963000 -> 39687000 | U38: 有利子長期借入金 | V38: =AG48 -> 33519000 | W38: =AF48 -> 31830000 | X38: =AE48 -> 39067000 | Y38: =AA87 -> 34099000 | AD38: 株数 | AE38: 6800 | AF38: 6800 | AG38: 6000 | AI38: 法人住民事業税 | AJ38: 180000 | AK38: 180000 | AL38: 180000
A39: 受取手形 | B39: =+AF6/1000 -> 0 | D39: =+AE6/1000 -> 0 | E39: 0 | G39: 受取手形 | H39: 0 | I39: 0 | J39: ********** | K39: ********** | L39: *********** | M39: *************** | N39: 受取手形 | U39: 正常ＦＣ*10 | V39: =(V34-V25)*10 -> 23289990 | W39: =(W34-W25)*10 -> 20199660 | X39: =(X34-X25)*10 -> -4064730 | Y39: =(Y34-Y25)*10 -> 33000000 | AI39: 純利益 | AJ39: -1355885 | AK39: 1176065 | AL39: 1443735
A40: 売掛金 | B40: =+AF7/1000 -> 1778.76 | D40: =+AE7/1000 -> 1927.68 | E40: 148.92 | G40: 売掛金 | H40: 0.08372124401 | I40: 0.01325302045 | J40: 計画回転率 | K40: ********** | N40: 売掛金 | U40: 借入金余裕額 | V40: =V39-V38 -> -10229010 | W40: =W39-W38 -> -11630340 | X40: =X39-X38 -> -43131730 | Y40: =Y39-Y38 -> -1099000 | Z40: 新規借入は１年経過後 | AD40: 経営者未収入金 | AE40: 210000 | AF40: 210000 | AG40: 210000
A41: 売掛債権 | B41: =+B39+B40 -> 1778.76 | D41: =+D39+D40 -> 1927.68 | E41: 148.92 | F41: =IF(D41=0,0,$D$6/D41) -> 13.50443279 | G41: 売掛債権 | H41: 0.08372124401 | I41: 0.01325302045 | J41: 13.1 | K41: ******* | L41: =IF(J41=0,0,$J$6/J41) -> 2110.34634 | M41: =+L41-D41 -> 182.6663405 | N41: 売掛債権 | O41: 41 | AD41: 経営者短期貸付金 | AE41: 0 | AF41: 0 | AG41: 0
A42: 棚卸資産 | B42: =+AF8/1000 -> 0 | D42: =+AE8/1000 -> 0 | E42: 0 | F42: =IF(D42=0,0,$D$6/D42) -> 0 | G42: 棚卸資産 | I42: 0 | J42: 0 | K42: ******* | L42: =IF(J42=0,0,$J$6/J42) -> 0 | M42: =+L42-D42 -> 0 | N42: 棚卸資産 | O42: 42 | U42: ５財務内容 | V42: 年月 | W42: ２５年4月期 | AD42: 投資 | AI42: 税務繰越損失
A43: 其の他流動資産 | B43: =+B37-B38-B41-B42 -> 270.134 | D43: =+D37-D38-D41-D42 -> 234.934 | E43: -35.2 | F43: =$D$6/D43 -> 110.8065457 | G43: 其の他流動資産 | H43: -0.1303057001 | I43: 0.001615198117 | J43: 110.8 | K43: ******* | L43: =IF(J43=0,0,$J$6/J43) -> 249.5084572 | M43: 14.57445722 | N43: 其の他流動資産 | O43: 43 | U43: コメント．問題点 | V43: 資産の部 | W43: 決算 | X43: 構成比 | Y43: 負債の部 | Z43: 決算 | AA43: 構成比 | AB43: コメント．問題点 | AD43: 経営者未払金 | AE43: 0 | AF43: 0 | AG43: 0 | AI43: 経営者報酬
A44: 固定資産計 | B44: =+AF14/1000 -> 142414.604 | D44: =AE14/1000 -> 141267.212 | E44: =+D44-B44 -> -1147.392 | G44: 固定資産計 増減で計画 | H44: -0.008056701825 | I44: 0.9712282377 | J44: 計画増加 | K44: 計画減少 | L44: =SUM(L45:L48) -> 140467.212 | M44: -800 | N44: 固定資産計 | O44: =O43+1 -> 44 | V44: 現預金 | W44: =AE5 -> 2022300 | X44: =W44/W59 -> 0.01390354377 | Y44: 支払債務 | Z44: =AE16+AE17 -> 0 | AA44: =Z44/Z59 -> 0 | AD44: 経営者未払費用 | AE44: 4436526 | AF44: 9219436 | AG44: 9054916
A45: 設備資産* | B45: =+AF12/1000 -> 61722.86 | D45: =+AE12/1000 -> 59875.468 | E45: =+D45-B45 -> -1847.392 | G45: 設備資産* | H45: -0.0299304342 | J45: 500 | K45: 0 | L45: =+D45+J45-K45-J18 -> 58575.468 | M45: -1300 | N45: 設備資産 | O45: =O44+1 -> 45 | V45: 売上債権 | W45: =AE6+AE7 -> 1927680 | X45: =W45/W59 -> 0.01325302045 | Y45: 短期借入金 | Z45: =AE19 -> 0 | AA45: =Z45/Z59 -> 0 | AD45: 経営者長期借入金 | AE45: 4586000 | AF45: 2056000 | AG45: 1636000 | AI45: 経営者人数 | AJ45: 2 | AK45: 2 | AL45: 2
A46: 土地建設勘定* | B46: =+AF11/1000 -> 71309.49 | D46: =+AE11/1000 -> 71309.49 | E46: 0 | G46: 土地建設勘定* | H46: 0 | I46: 0.4902608986 | J46: 0 | K46: 0 | L46: =+D46+J46-K46 -> 71309.49 | M46: 0 | N46: 土地建設勘定* | O46: 46 | V46: 棚卸資産 | W46: =AE8 -> 0 | X46: =W46/W59 -> 0 | Y46: 其の他 | Z46: =AE18+AE20+AE22+AE23 -> 6703044 | AA46: =Z46/Z59 -> 0.04608419405 | AD46: 経営者短期借入金 | AI46: 従業員人数 | AJ46: 1 | AK46: 1 | AL46: 1
A47: 投資＊ | B47: =+AF42/1000 -> 0 | D47: =+AE42/1000 -> 0 | E47: 0 | G47: 投資＊ | H47: 0 | I47: 30.02 | J47: 0 | K47: 0 | L47: =+D47+J47-K47 -> 0 | M47: 0 | N47: 投資＊ | O47: 47 | V47: 其の他 | W47: 234934 | X47: =W47/W59 -> 0.001615198117 | Y47: 流動負債計 | Z47: =AE24 -> 6703044 | AA47: =Z47/Z59 -> 0.04608419405 | AD47: 有利子短期借入金 | AI47: 計 | AJ47: 3 | AK47: 3 | AL47: 3
A48: 其の他固定資産* | B48: =+AF13/1000-B47 -> 9382.254 | D48: =+AE13/1000-D47 -> 10082.254 | E48: 700 | G48: 其の他固定資産* | H48: 0.07460893726 | I48: 0.06931664925 | J48: 500 | K48: 0 | L48: =+D48+J48-K48 -> 10582.254 | M48: 500 | N48: 其の他固定資産* | O48: 48 | V48: 流動資産計 | W48: =AE10 -> 4184914 | X48: =W48/W59 -> 0.02877176233 | Y48: 実質長期借入金 | Z48: =AE25+AE26-Z56 -> 39067000 | AA48: =Z48/Z59 -> 0.2685900927 | AB48: 無利子長期 | AD48: 有利子長期借入金 | AE48: 39067000 | AF48: 31830000 | AG48: 33519000
A49: 総資産 | B49: =+AF15/1000 -> 145721.128 | D49: =+AE15/1000 -> 145452.126 | E49: -269.002 | F49: 流負回転率 | G49: 総資産 | H49: -0.001846005474 | I49: 1 | J49: 計画増加 | K49: 計画減少 | L49: =L37+L44 -> 151802.7923 | M49: 6350.66634 | N49: 総資産 | O49: 49 | V49: 土地 | W49: 71309490 | X49: =W49/W59 -> 0.4902608986 | Y49: 其の他 | Z49: =AE27 -> 0 | AA49: =Z49/Z59 -> 0 | AB49: 借入金は | AI49: 経営者賃借料
A50: 流動負債 | B50: =+AF24/1000 -> 11046.311 | D50: =+AE24/1000 -> 6703.044 | E50: -4343.267 | F50: 買掛債務回転率 | G50: 流動負債OK | H50: -0.3931871011 | I50: 0.04608419405 | J50: 買掛債務回転率 | K50: ******* | L50: =L51+L54+L55 -> 6703.044 | M50: =+L50-D50 -> 0 | N50: 流動負債OK | O50: 50 | V50: 建物 | W50: 59875468 | X50: =W50/W59 -> 0.4116506898 | AB50: 自己資本 | AI50: 雑収入 | AJ50: 191014 | AK50: 173 | AL50: 9509
A51: 買掛債務 | B51: =+AF16/1000+AF17/1000 -> 0 | D51: =+AE16/1000+AE17/1000 -> 0 | E51: 0 | F51: =IF($D$51=0,0,$D$6/$D$51) -> 0 | G51: 買掛債務 | H51: 0 | I51: 0 | J51: 0 | K51: ******* | L51: =IF(J51=0,0,$J$6/J51) -> 0 | M51: 0 | N51: 買掛債務 | O51: 51 | V51: 其の他 | W51: 10082254 | X51: =W51/W59 -> 0.06931664925 | AB51: に加算 | AD51: 仕訳伝票総数 | AE51: 1226 | AI51: 特別利益 | AJ51: 0 | AK51: 0 | AL51: 0
A52: 有利子短期借入金 | B52: =+AF47/1000 -> 0 | D52: =+AE47/1000 -> 0 | E52: 0 | G52: 有利子短期借入金* | H52: 0 | I52: 0 | K52: 0 | L52: =+D52+J52-K52 -> 0 | M52: 0 | N52: 有利子短期借入金* | O52: 52 | V52: 有形固定資産計 | W52: =SUM(W49:W51) -> 141267212 | X52: =W52/W59 -> 0.9712282377 | Y52: 固定負債計 | Z52: =SUM(Z48:Z49) -> 39067000 | AA52: =Z52/Z59 -> 0.2685900927 | AI52: 雑損失 | AJ52: 0 | AK52: 0 | AL52: 0
A53: 無利子短期借入金 | B53: =+B54-B52 -> 0 | D53: =+D54-D52 -> 0 | E53: 0 | G53: 無利子短期借入金 | H53: 0 | I53: 0 | J53: 0 | K53: 0 | L53: 0 | M53: 0 | N53: 無利子短期借入金 | O53: 53 | V53: 其の他固定資産計 | W53: =AE13 -> 10082254 | X53: =W53/W59 -> 0.06931664925 | Y53: 負債合計 | Z53: =Z47+Z52 -> 45770044 | AA53: =Z53/Z59 -> 0.3146742867 | AI53: 特別損失 | AJ53: 0 | AK53: 0 | AL53: 0
A54: 短期借入金計 | B54: =+AF19/1000 -> 0 | D54: =+AE19/1000 -> 0 | E54: 0 | G54: 短期借入金計 | H54: 0 | I54: 0 | J54: =+J52+J53 -> 0 | K54: =+K52+K53 -> 0 | L54: 0 | M54: 0 | N54: 短期借入金計 | O54: 54 | V54: 内訳 | Y54: 資本金 | Z54: =AE30 -> 68000000 | AA54: =Z54/Z59 -> 0.4675077764 | AI54: 受取利息配当 | AJ54: 3787 | AK54: 15100 | AL54: 697
A55: そのた流動負債 | B55: =+B50-B51-B54 -> 11046.311 | D55: =+D50-D51-D54 -> 6703.044 | E55: -4343.267 | G55: そのた流動負債 | H55: -0.3931871011 | I55: 0.04608419405 | J55: 0 | K55: 0 | L55: 6703.044 | M55: 0 | N55: そのた流動負債 | O55: 55 | V55: 会員権 | W55: 0 | Y55: 其の他 | Z55: =AE31+AE32 -> 15593657 | AA55: =Z55/Z59 -> 0.1072081751 | AI55: 事業税
A56: 固定負債 | B56: =+AF28/1000 -> 49725.275 | E56: -49725.275 | G56: 固定負債 | H56: -1 | I56: 0 | K56: 0 | L56: 0 | M56: 0 | N56: 固定負債 | O56: 56 | P56: =L50+L56 -> 6703.044 | V56: 投資有価証券 | W56: ？ | Y56: 経営者長期借入金 | Z56: =Y93 -> 16088425 | AI56: 消費税 | AJ56: 580700 | AK56: 736700 | AL56: 664700
A57: 有利子長期借入金 | B57: =+AF48/1000 -> 31830 | D57: =+AE48/1000 -> 39067 | E57: 7237 | G57: 有利子長期借入金 | H57: 0.2273641219 | I57: 0.2685900927 | J57: =IF(Z87>=0,Z87/1000,"") ->  | K57: =IF(Z87<=0,Z87/1000,"") -> -4968 | N57: 有利子長期借入金 | O57: 57 | V57: 保険積立金 | W57: 2813572 | Y57: 自己資本計 | Z57: =SUM(Z54:Z56) -> 99682082 | AA57: =Z57/Z59 -> 0.6853257133
A58: 無利子長期借入金 | B58: =+B59-B57 -> 2895.275 | D58: =+D59-D57 -> 16088.425 | E58: 13193.15 | G58: 無利子長期借入金 | H58: 4.556786488 | I58: 0.1106097617 | J58: =IF(Z93>=0,Z93/1000,"") -> 0 | K58: =IF(Z93<=0,Z93/1000,"") -> 0 | L58: =+D58+J58-K58 -> 16088.425 | M58: 0 | N58: 無利子長期借入金 | O58: 58 | V58: 固定資産計 | W58: =AE14 -> 141267212 | X58: =W58/W59 -> 0.9712282377
A59: 長期借入金計 | B59: =+AF26/1000 -> 34725.275 | D59: =+AE26/1000 -> 55155.425 | E59: 20430.15 | G59: 長期借入金計 | H59: 0.5883365934 | I59: 0.3791998544 | J59: =SUM(J57:J58) -> 0 | K59: =+K57+K58 -> -4968 | L59: 60123.425 | M59: 4968 | N59: 長期借入金計 | O59: 59 | V59: 資産合計 | W59: =AE15 -> 145452126 | X59: =W59/W59 -> 1 | Y59: 負債資本合計 | Z59: =Z53+Z57 -> 145452126 | AA59: =Z59/Z59 -> 1 | AI59: 雑収入摘要
A60: 其の他固定負債 | B60: =+B56-B59 -> 15000 | D60: =+D56-D59 -> -55155.425 | E60: -70155.425 | G60: 其の他固定負債 | H60: -4.677028333 | I60: -0.3791998544 | J60: 0 | K60: 0 | L60: -55155.425 | M60: 0 | N60: 其の他固定負債 | O60: 60 | Y60: 税務繰越欠損金 | Z60: 35505857 | AI60: 特別利益摘要
A61: 負債合計 | B61: =+AF29/1000 -> 60771.586 | D61: =+AE29/1000 -> 61858.469 | E61: 1086.883 | G61: 負債合計 | H61: =(+D61-B61)/B61 -> 0.0178847233 | I61: 0.4252840484 | J61: ******* | K61: ******* | L61: =L50+L56 -> 6703.044 | M61: -55155.425 | N61: 負債合計 | O61: 61 | AI61: 雑損失摘要
A62: 株主資本 | B62: =+AF33/1000 -> 84949.542 | D62: =+AE33/1000 -> 83593.657 | E62: -1355.885 | G62: 株主資本 | H62: % | I62: 0.5747159516 | J62: 0 | K62: =SUM(K63:K65) -> 0 | L62: =L63+L64+L65 -> 84793.657 | M62: 1200 | N62: 株主資本 | O62: 62 | U62: 6小規模企業価値 | V62: 小計 | W62: =H674 -> 0.04710524867 | X62: 企業価値超過額 | Y62: =W64-W65 -> 204350193.6 | Z62: コメント、問題点 | AI62: 特別損失摘要
A63: 資本金 | B63: =+AF30/1000 -> 68000 | D63: =+AE30/1000 -> 68000 | E63: 0 | G63: 資本金 | H63: =(+D63-B63)/B63 -> 0 | I63: 0.4675077764 | J63: 0 | K63: 0 | L63: =+D63+J63-K63 -> 68000 | M63: =+L63-D63 -> 0 | N63: 資本金 | O63: 63 | V63: 平均経営期待営業キャッシュフロ－ | W63: =AB33 -> 16477525.25 | X63: 企業価値対会計総資本 | Y63: =W64/W65 -> 2.40493095 | Z63: 将来賃借料、報酬は期待できる。
A64: 剰余金 | B64: =(+AF32+AF31)/1000 -> 16949.542 | D64: =(+AE32+AE31)/1000 -> 15593.657 | E64: -1355.885 | G64: 剰余金 | H64: =(+D64-B64)/B64 -> -0.07999537687 | I64: 0.1072081751 | J64: =IF(J12>0,J12,0) -> 1200 | K64: =IF(J12<0,J12,0) -> 0 | L64: =+D64+J64-K64 -> 16793.657 | N64: 剰余金 | O64: 64 | V64: 小規模企業企業価値 | W64: =W63/W62 -> 349802319.6 | Z64: 投資価値は評価できる。
A65: 其の他 | B65: =+AE37/1000 -> 0 | D65: =+AF37/1000 -> 0 | E65: 0 | G65: 其の他 | H65: =IF(B65=0,0,(+D65-B65)/B65) -> 0 | I65: 0 | J65: 0 | K65: 0 | L65: =D65+J65-K65 -> 0 | N65: 其の他 | O65: 65 | V65: 会計総資本 | W65: =H677*1000 -> 145452126 | AC65: 当期利益
A66: 負債資本合計 | B66: =+AF34/1000+B65 -> 145721.128 | D66: =+AE34/1000+D65 -> 145452.126 | E66: -269.002 | G66: 借方貸方照合 | H66: -0.001846005474 | I66: 1 | J66: ******* | K66: ******* | L66: =L61+L62 -> 91496.701 | M66: =$B$1130 -> 55338.09134 | N66: 借方貸方照合 | O66: 66 | AC66: 減価償却費 | AD66: =V66 -> 0 | AE66: 0 | AF66: 0
A67: 経営者未収入金 | B67: =+AF40/1000 -> 210 | D67: =+AE40/1000 -> 210 | E67: 0 | G67: 経営者未収入金 | H67: 0 | I67: 0.001443774015 | J67: 0 | K67: 0 | L67: =+D67+J67-K67 -> 210 | M67: =+L67-D67 -> 0 | N67: 経営者未収入金 | O67: 67 | U67: ７資本負債構成 | V67: 前々期 | W67: 前期 | X67: 当期 | Y67: 前期増減 | Z67: 次期計画残高 | AA67: コメント．問題点 | AD67: 前々期 | AE67: 前期 | AF67: 当期
A68: 経営者短期貸付金 | B68: =+AF41 -> 0 | D68: =+AE41 -> 0 | E68: 0 | G68: 経営者短期貸付金 | H68: 0 | I68: 0 | J68: 0 | K68: 0 | L68: 0 | M68: =+L68-D68 -> 0 | N68: 経営者短期貸付金 | O68: 68 | U68: 決算上自己資本 | V68: =AG33 -> 75773477 | W68: =AF33 -> 84949542 | X68: =AE33 -> 83593657 | Y68: =X68-W68 -> -1355885 | Z68: =L62*1000 -> 84793657 | AA68: 実質自己資本は充実
A69: 経営者未払費用 | B69: =+AF44/1000 -> 9219.436 | D69: =+AE44/1000 -> 4436.526 | E69: -4782.91 | G69: 経営者未払費用 | H69: -0.5187855309 | I69: 0.03050162361 | J69: 0 | K69: 0 | L69: 4436.526 | M69: =+L69-D69 -> 0 | N69: 経営者未払費用 | O69: 69 | U69: 経営者借入金 | V69: =W93 -> 1951525 | W69: =X93 -> 2895275 | X69: =Y93 -> 16088425 | Y69: =X69-W69 -> 13193150 | Z69: =L58 -> 16088.425
A70: 経営者短期借入金 | B70: =+AF46/1000 -> 0 | D70: =+AE46/1000 -> 0 | E70: 0 | G70: 経営者短期借入金 | H70: 0 | I70: 0 | J70: 0 | K70: 0 | L70: 0 | M70: =+L70-D70 -> 0 | N70: 経営者短期借入金 | O70: 70 | U70: 実質自己資本 | V70: =V68+V69 -> 77725002 | W70: =W68+W69 -> 87844817 | X70: =X68+X69 -> 99682082 | Y70: 11837265 | Z70: =X70/X74 -> 0.6853257133
A71: 経営者長期貸付金 | B71: =+AF47/1000 -> 0 | D71: =+AE47/1000 -> 0 | E71: 0 | G71: 経営者長期貸付金 | H71: 0 | I71: 0 | J71: 0 | K71: 0 | L71: 0 | M71: =+L71-D71 -> 0 | N71: 経営者長期貸付金 | O71: 71 | U71: 金融機関借入金 | V71: =W87 -> 33519000 | W71: =X87 -> 31830000 | X71: =Y87 -> 39067000 | Y71: 7237000 | Z71: =X71/X74 -> 0.2685900927
J72: 0 | K72: 0 | L72: 0 | O72: 72 | U72: 其の他負債 | V72: =V73-V71 -> 26387944 | W72: =W73-W71 -> 26046311 | X72: =X73-X71 -> 6703044 | Y72: -19343267 | Z72: =X72/X74 -> 0.04608419405
A73: 経営者長期借入金 | B73: =+AF45/1000 -> 2056 | D73: =+AE45/1000 -> 4586 | E73: 2530 | G73: 経営者長期借入金 | H73: 1.230544747 | I73: 0.03152927445 | J73: 0 | K73: 0 | L73: 4586 | M73: =+L73-D73 -> 0 | N73: 経営者長期借入金 | O73: 73 | U73: 修正後借入金 | V73: =AE29-V69 -> 59906944 | W73: =AF29-W69 -> 57876311 | X73: =AE29-X69 -> 45770044 | Y73: -12106267 | Z73: =X73/X74 -> 0.3146742867
A74: 経営者長期未払金 | B74: =+AF43/1000 -> 0 | D74: =+AE43/1000 -> 0 | E74: 0 | G74: 経営者長期未払金 | H74: 0 | I74: 0 | J74: 0 | K74: 0 | L74: 0 | M74: =+L74-D74 -> 0 | N74: 経営者長期未払金 | O74: 74 | U74: 負債資本計 | V74: =V70+V73 -> 137631946 | W74: =W70+W73 -> 145721128 | X74: =X70+X73 -> 145452126 | Y74: =X74-W74 -> -269002 | Z74: =X74/X74 -> 1
A75: 擬似資本金 | B75: =+B73+B74 -> 2056 | D75: =+D73+D74 -> 4586 | E75: 2530 | G75: 擬似資本金 | H75: 1.230544747 | I75: 0.03152927445 | J75: =SUM(J67:J74)+J63 -> 0 | K75: =SUM(K67:K74)+K63 -> 0 | L75: 4586 | N75: 擬似資本金
A76: 運転資本(会計上） | B76: =+B41+B42-B51 -> 1778.76 | D76: =+D41+D42-D51 -> 1927.68 | E76: 148.92 | G76: 運転資本(会計上） | H76: 0.08372124401 | I76: 0.01325302045 | L76: 1927.68 | M76: =+L76-D76 -> 0 | N76: 運転資本(会計上） | U76: ８固定資産と長期借入 | V76: 摘要 | W76: 前々期 | X76: 前期 | Y76: 当期 | Z76: 次期増減 | AA76: 次期残高 | AB76: コメント．問題点
A77: 有形固定資産 | B77: =+B45+B46 -> 133032.35 | D77: =+D45+D46 -> 131184.958 | E77: -1847.392 | G77: 有形固定資産 | H77: 税務繰越欠損金 | I77: =+AJ42/1000 -> 0 | N77: 有形固定資産 | U77: 土地建設仮勘定 | V77: 坂戸。久本。梶ヶ谷 | W77: =AG11 -> 53309490 | X77: =AF11 -> 71309490 | Y77: =AE11 -> 71309490 | Z77: =Y77-X77 -> 0 | AA77: =Y77+Z77 -> 71309490
J78: 計画期末Ｃ | K78: =+H980 -> 8975.725543 | L78: ＯＫ | M78: ＣＦの検証 | U78: 設備資産 | V78: 坂戸。久本。梶ヶ谷 | W78: =AG12 -> 58405859 | X78: =AF12 -> 61722860 | Y78: =AE12 -> 59875468 | Z78: =Y78-X78 -> -1847392 | AA78: =Y78+Z78 -> 58028076
B79: =+$B$2 -> 決算期 | D79: =+$D$2 -> 0 | J79: 計画期首Ｃ | K79: =+AE5/1000 -> 2022.3 | L79: ＯＫ | M79: ＣＦの検証 | U79: その他固定資産 | V79: 保険積立金等 | W79: =AG13 -> 7932254 | X79: =AF13 -> 9382254 | Y79: =AE13 -> 10082254 | Z79: =Y79-X79 -> 700000 | AA79: 10782254
H80: =+H3 -> 計画未 | U80: 固定資産計 | W80: =AG14 -> 119647603 | X80: =AF14 -> 142414604 | Y80: =AE14 -> 141267212 | Z80: =Y80-X80 -> -1147392 | AA80: =SUM(AA77:AA79) -> 140119820 | AB80: 小計
A81: 加減算 | B81: 名称 | D81: 金額 | E81: 名称 | H81: 金額 | U81: 長期借入金内訳 | W81: 前々期 | X81: 前期 | Y81: 当期 | Z81: 次期増減 | AA81: 次期残高 | AB81: コメント．問題点
A82: 結果１・結果２ | B82: 期首現金等価物* | D82: =SUM(D83:D88) -> 1257.63 | E82: 営業キャッシュフロー＊ | H82: =SUM(H83:H88) -> 834.094 | U82: 日本政策金融公庫 | V82: 運転資金 | W82: 1050000 | X82: 4746000 | Y82: 3888000 | Z82: =-54000*12 -> -648000 | AA82: =Y82+Z82 -> 3240000 | AB82: 勘定内訳より
A83: 加減１．２ | B83: 期首現金等価物* | D83: =+B38 -> 1257.63 | E83: 当期利益 | H83: =D16 -> -1355.885 | U83: 川信 | V83: 久本土地建物 | W83: 30430000 | X83: 24470000 | Y83: 20990000 | Z83: =-290000*12 -> -3480000 | AA83: =Y83+Z83 -> 17510000 | AB83: ３１年５月まで
A84: 加減３．４ | E84: 減価償却費 | H84: =D18 -> 1847.392 | U84: 浜銀 | V84: 梶ヶ谷ホール | W84: 2039000 | X84: 1142000 | Y84: 14189000 | Z84: =-70000*12 -> -840000 | AA84: =Y84+Z84 -> 13349000 | AB84: ３４年３月まで | AC84: 資産の部
A85: 加減５．６ | E85: 運転資本ＣＦ増減 | H85: =+H117 -> -148.92 | U85: 川信 | V85: 運転資金 | X85: 1472000 | Y85: 0 | Z85: 0 | AA85: 0 | AC85: 現預金
A86: 加減７・８ | E86: グロスＣＦ増減 | H86: =+D110 -> 491.507 | AC86: 売上債権 | AD86: =W44 -> 2022300
A87: 加減９・１０ | U87: 有利子長期借入金計 | W87: =SUM(W82:W86) -> 33519000 | X87: =SUM(X82:X86) -> 31830000 | Y87: =SUM(Y82:Y86) -> 39067000 | Z87: =SUM(Z82:Z86) -> -4968000 | AA87: =SUM(AA82:AA86) -> 34099000 | AB87: 小計 | AC87: 棚卸資産 | AD87: =W45 -> 1927680
A88: 加減１１・１２ | H88: 0 | K88: 10 | U88: 戸張満江 | W88: 1636000 | X88: 2056000 | Y88: 4586000 | Z88: 0 | AA88: =Y88-Z88 -> 4586000 | AC88: 其の他流動資産 | AD88: =W46 -> 0
A89: 結果３・結果４ | B89: 投資キャッシュフロー | D89: =SUM(D90:D93) -> -700 | E89: 財務キャッシュフロー* | H89: =SUM(H90:H95) -> -54033.342 | U89: 戸張真知子 | W89: 230000 | X89: 230000 | Y89: 230000 | Z89: 0 | AA89: =Y89-Z89 -> 230000 | AC89: 土地 | AD89: =W47 -> 234934
A90: 加減１３・１４ | B90: 設備資産の増減 | D90: =-(+E45+D18) -> -2.273736754e-13 | E90: 有利子短期借入金増減 | H90: =+E52 -> 0 | I90: * | U90: 戸張道也 | W90: 85525 | X90: 609275 | Y90: 11272425 | Z90: 0 | AA90: =Y90-Z90 -> 11272425 | AC90: 建物 | AD90: =W49 -> 71309490
A91: 加減１５．１６ | B91: 土地建設勘定* | D91: =-(+E46) -> 0 | E91: 有利子長期借入金増減＊ | H91: =+E57 -> 7237 | I91: * | AC91: 其の他 | AD91: =W50 -> 59875468
A92: 加減１７．１８ | B92: 投資資産の増減 | D92: =-(+E47) -> 0 | E92: 其の他固定負債増減＊ | H92: =+E60 -> -70155.425 | I92: * | AD92: =W51 -> 10082254
A93: 加減１０・２０ | B93: 其の他固定資産* | D93: =-(+E48) -> -700 | E93: 無利子長期借入金増減 | H93: =+E58 -> 13193.15 | U93: 経営者長期借入金計 | W93: =SUM(W88:W91) -> 1951525 | X93: =SUM(X88:X91) -> 2895275 | Y93: =SUM(Y88:Y91) -> 16088425 | Z93: =SUM(Z88:Z91) -> 0 | AA93: =SUM(AA88:AA91) -> 16088425 | AB93: 小計 | AD93: 資産内訳 | AE93: 資産の内訳グラフ
A94: 加減２１・２２ | E94: 無利子短期借入金増減 | H94: =+E53 -> 0 | U94: 長期借入金合計 | W94: =AG26 -> 35470525 | X94: =AF26 -> 34725275 | Y94: =AE26 -> 55155425 | Z94: =Z87+Z93 -> -4968000 | AA94: =AA87+AA93 -> 50187425 | AB94: ←ｃｓｖょり
A95: 加減２３・２４ | D95: 0 | E95: 其の他流動資産負債ＣＦ増減 | H95: =D124 -> -4308.067 | U95: その他固定負債 | W95: =W94-W93-W87 -> 0 | X95: =X94-X93-X87 -> 0 | Y95: =Y94-Y93-Y87 -> 0 | Z95: =Z94-Z93-Z87 -> 0
A96: 結果５・結果６ | B96: ネットＣＦ | D96: =SUM(D97:D102) -> -53899.248 | E96: 期末現金等価物* | H96: =SUM(H97:H102) -> 2022.3
A97: 加減25/26 | B97: 営業キャッシュフロー | D97: =+H82 -> 834.094 | E97: 期末現金等価物* | H97: =+D38 -> 2022.3
A98: 加減27/28 | B98: 投資キャッシュフロー | D98: =+D89 -> -700 | Z98: 0
A99: 加減29/30 | B99: 財務キャッシュフロー | D99: =+H89 -> -54033.342
A100: 加減31/32
A101: 加減33/34
A102: 加減35/36
A103: 結果７・結果８ | B103: 特別損益 | D103: =+D104 -> 7 | E103: 固定負債増減 | H103: =SUM(H104:H109) -> -49725.275
A104: 加減37/38 | B104: 特別利益 | D104: 7 | E104: 有利子長期借入金増減＊ | H104: =+E57 -> 7237
A105: 加減39/40 | E105: 其の他固定負債増減＊ | H105: =+E60 -> -70155.425
A106: 加減41/42 | E106: 無利子長期借入金増減 | H106: =+E58 -> 13193.15
A107: 加減43/44
A108: 加減45/46
A109: 加減47/48 | AC109: 負債の部
A110: 結果９・結果１０ | B110: グロスキャッシュフロー* | D110: =SUM(D111:D116) -> 491.507 | E110: 前期運転資本* | H110: =+H111+H112+H113 -> 1778.76 | AC110: 支払債務
A111: 加減49/50 | B111: 減価償却費* | D111: =+D18 -> 1847.392 | E111: 売掛債権* | H111: =+B41 -> 1778.76 | AC111: 短期借入金 | AD111: =Z44 -> 0
A112: 加減51/52 | B112: 当期純利益* | D112: =+D16 -> -1355.885 | E112: 棚卸資産* | H112: =+B42 -> 0 | AC112: 其の他 | AD112: =Z45 -> 0
A113: 加減53/54 | E113: 買掛債務* | H113: =-B51 -> 0 | AC113: 長期借入金 | AD113: =Z46 -> 6703044
A114: 加減55/56 | AC114: 其の他 | AD114: =Z48 -> 39067000
A115: 加減57/58 | AC115: 修正自己資本 | AD115: =Z49 -> 0
A116: 加減59/60 | AD116: =Z57 -> 99682082
A117: 結果１１・結果１２ | B117: 当期運転資本* | D117: =+D118+D119+D120 -> 1927.68 | E117: 運転資本増減高* | G117: ｏｋ | H117: =((+H118-H119)*-1) -> -148.92 | I117: =IF((+I118-I119)>0,(I118-I119)*-1,(I118-I119))*I120 -> 0 | AE117: 負債資本の内訳グラフ
A118: 加減61/62 | B118: 売掛債権* | D118: =+D41 -> 1927.68 | E118: 当期運転資本* | H118: =+D117 -> 1927.68
A119: 加減63/64 | B119: 棚卸資産* | D119: =+D42 -> 0 | E119: 前期運転資本 | H119: =+H110 -> 1778.76
A120: 加減65/66 | B120: 買掛債務* | D120: =-D51 -> 0
A121: 加減67/68 | H121: 0
A122: 加減69/70 | H122: 0
A123: 加減71/72 | H123: 0
A124: 結果１３・結果１４ | B124: その他流資負ＣＦ増減 | D124: =+D129+D130 -> -4308.067 | E124: 有利子固定負債増減 | H124: =SUM(H125:H128) -> 7237
A125: 加減73/74 | E125: 有利子長期借入金増減＊ | H125: =+E57 -> 7237
A126: 加減75/76
A127: 加減77/78
A128: 加減79/80 | H128: 0
A129: 加減81/82 | B129: その他流負債ＣＦ増減 | D129: =+E55 -> -4343.267 | H129: 0
A130: 加減83/84 | B130: その他流資産ＣＦ増減 | D130: =-E43 -> 35.2 | H130: 0
A131: 結果１5・結果16 | B131: 前期投資キャッシュフロー | D131: =SUM(D132:D135) -> 1682.999 | E131: 無利子固定負債増減 | H131: =SUM(H132:H137) -> -56962.275
A132: 加減85/86 | B132: 設備資産の増減 | D132: =AC13/1000+B18 -> 1682.999 | E132: =+E105 -> 其の他固定負債増減＊ | H132: =+E60 -> -70155.425 | AC132: 営業キャッシュフロ－
A133: 加減87/88 | B133: 土地建設勘定* | D133: =AC11/1000 -> 0 | E133: =+E106 -> 無利子長期借入金増減 | H133: =+H106 -> 13193.15 | AC133: 設備投資 | AD133: =X32 -> 14880919
A134: 加減89/90 | AC134: フリ－キャッシュフロ－ | AD134: =X33 -> 1847392
A135: 加減91/92 | B135: 其の他固定資産* | D135: =AC15/1000 -> 0 | AC135: 支払利息 | AD135: =X34 -> 13033527
A136: 加減93/94 | AC136: 借入金返済原資 | AD136: =X35 -> 960426
A137: 加減95/96 | AD137: =X36 -> -1366899
A138: 結果１7・結果18 | B138: フリーキャッシュフロー | D138: =+D139+D140 -> 134.094 | E138: 前前期投資キャッシュフロー
A139: 加減97/98 | B139: 営業キャッシュフロー | D139: =+H82 -> 834.094 | E139: 設備資産の増減
A140: 加減99/100 | B140: 投資キャッシュフロー | D140: =+D89 -> -700 | E140: 土地建設勘定*
A141: 加減101/102 | E141: 投資資産の増減
A142: 加減103/104 | E142: 其の他固定資産*
A143: 加減105/106
A144: 加減107/108
A145: 除算の部
A146: 除算 | B146: 名称 | D146: 除算分子 | E146: 名称 | H146: 除算分母 | I146: 結果
A147: 結果19 | B147: 経営者財務ＣＦ | D147: =+D148+D149+D150 -> -2530 | E147: 経営者営業ＣＦ | H147: =SUM(H148:H151) -> -4782.91 | I147: =+D147/H147 -> 0.5289666751
A148: 結果20 | B148: 経営者長期借入金増減 | D148: =+E73*-1 -> -2530 | E148: 経営者貸付金増減 | H148: =+E68*-1 -> 0
A149: 結果21 | B149: 経営者長期未払金増減 | D149: =+E74*-1 -> 0 | E149: 経営者未収入金増減 | H149: =+E67*-1 -> 0
A150: 結果22 | B150: 経営者短期借入金増減 | D150: =+E70 -> 0 | E150: 経営者未払費用増減 | H150: =+E69 -> -4782.91 | I150: 0
A151: 結果23
A152: 結果24
A153: 結果25 | B153: 経営者投資ＣＦ | D153: =+D154 -> 0 | E153: 純営業ＣＦ | H153: =+H155-H154 -> 5617.004 | I153: 0
A154: 結果26 | B154: 経営者長期貸付金増減 | D154: =+E71 -> 0 | E154: 経営者営業ＣＦ | H154: =+H147 -> -4782.91 | I154: 0
A155: 結果27 | E155: 営業ＣＦ | H155: =+H82 -> 834.094 | I155: 0
A156: 結果28
A157: 結果29 | AC157: 有利子借入金返済
A158: 結果30 | AC158: 有利子長期借入金 | AD158: =X37 -> -7237000
A159: 結果31 | AC159: フリ－キャッシュ１０倍 | AD159: =X38 -> 39067000
A160: 結果32 | I160: =+D160/H160 ->  | AC160: 借入金余裕額 | AD160: =X39 -> -4064730
A161: 乗算の部 | AD161: =X40 -> -43131730
A162: 乗算 | B162: 名称 | D162: 対象 | E162: 名称 | H162: 対象 | I162: 結果
A163: 結果33 | B163: 純財務ＣＦ | D163: =+D165-D164 -> -51503.342 | E163: 純投資ＣＦ | H163: =+H165-H164 -> -700 | I163: =+D163*H163 -> 36052339.4
A164: 結果34 | B164: 経営者財務ＣＦ | D164: =+D147 -> -2530 | E164: 経営者投資ＣＦ | H164: =+D153 -> 0 | I164: =+D164*H164 -> 0
A165: 結果35 | B165: 財務ＣＦ | D165: =+H89 -> -54033.342 | E165: 投資ＣＦ | H165: =+D89 -> -700 | I165: =+D165*H165 -> 37823339.4
A166: 結果36 | I166: =+D166*H166 -> 0
A167: 結果37 | I167: =+D167*H167 -> 0
A168: 結果38
A169: 結果39 | I169: =+D169*H169 -> 0
A170: 結果40 | B170: 純ネットＣＦ | D170: =SUM(D171:D173) -> -46586.338 | E170: 経営者ネットＣＦ | H170: =SUM(H171:H173) -> -7312.91 | I170: =+D170-H170 -> -39273.428 | J170: 差異
A171: 結果41 | B171: 純営業ＣＦ | D171: =+H153 -> 5617.004 | E171: 経営者営業ＣＦ | H171: =+H154 -> -4782.91
A172: 結果42 | B172: 純投資ＣＦ | D172: =+H163 -> -700 | E172: 経営者投資ＣＦ | H172: =+H164 -> 0
A173: 結果43 | B173: 純財務ＣＦ | D173: =+D163 -> -51503.342 | E173: 経営者財務ＣＦ | H173: =+D164 -> -2530
A174: 結果44
A175: 結果45
A176: 結果46
A177: 結果47 | H177: 7 | I177: =+D177*H177 -> 0
A178: 結果48 | E178: 合計 | I178: =SUM(I171:I177) -> 0 | AC178: 銀行等者入金計
A179: =+A1 -> 20121025 | B179: =$B$2 -> 決算期 | C179: =$B$1 -> 411 | D179: =$C$1 -> 有限会社 戸張計算センター | G179: キャッシュフロー計算書 | K179: =+K2 -> 0 | AD179: =SUM(AD174:AD178) -> 0 | AE179: =SUM(AE174:AE178) -> 0 | AF179: =SUM(AF174:AF178) -> 0 | AG179: =SUM(AG174:AG178) -> 0
A180: キャッシュフロー計算書 | D180: （１）キャッシュフロー計算書
B181: 結果ＮＯ | E181: 内容分析 | G181: 項目 | H181: 金額
A182: ＣＦ計算書の構成要素 | B182: 1 | F182: 評価 | G182: 期首現金等価物 | H182: =+D82 -> 1257.63
A183: ＣＦ計算書の構成要素 | B183: 2 | C183: 繰越資金 | E183: =+D82 -> 1257.63 | F183: ＯＫ | G183: 営業キャッシュフロー | H183: =+H82 -> 834.094
A184: ＣＦ計算書の構成要素 | B184: 3 | C184: 営業ＣＦ | D184: 営業活動による | E184: =+H183 -> 834.094 | F184: ＯＫ | G184: 投資キャッシュフロー | H184: =+D89 -> -700
A185: ＣＦ計算書の構成要素 | B185: 4 | C185: 投資ＣＦ | D185: 設備投資による資金増減 | E185: =+H184 -> -700 | F185: ＯＫ | G185: 財務キャッシュフロー | H185: =+H89 -> -54033.342
A186: ＣＦ計算書の構成要素 | B186: 5 | C186: フリーＣＦ | D186: 営業ＣＦ+投資ＣＦ） | E186: =+H183+H184 -> 134.094 | F186: ＯＫ | G186: ネットキャッシュフロー | H186: =+D96 -> -53899.248
A187: ＣＦ計算書の構成要素 | B187: 6 | C187: グロスＣＦ | D187: 当期利益+償却 | E187: =+D110 -> 491.507 | F187: ＯＫ | G187: 期末現金等価物 | H187: =SUM(H182:H185) -> -52641.618 | AC187: 経営者借入金計
A188: 営業ＣＦ構成要素 | B188: 7 | C188: 財務ＣＦ | D188: 資金調達-返済による増減 | E188: =+H185 -> -54033.342 | F188: ＯＫ | G188: グロスキャッシュフロー | H188: =+D110 -> 491.507 | I188: ＯＫ | AD188: =SUM(AD183:AD187) -> 0 | AE188: =SUM(AE183:AE187) -> 0 | AF188: =SUM(AF183:AF187) -> 0 | AG188: =SUM(AG183:AG187) -> 0
A189: 営業ＣＦ構成要素 | B189: 8 | C189: 資金残 | E189: =H187 -> -52641.618 | F189: ＯＫ | G189: 当期利益 | H189: =+D112 -> -1355.885 | I189: ＮＯ
A190: 営業ＣＦ構成要素 | B190: 9 | C190: ネットＣＦ | D190: 営業ＣＦ+投資ＣＦ+財務ＣＦ | E190: =E184+E185+E188 -> -53899.248 | F190: ＮＯ | G190: 減価償却費 | H190: =+D111 -> 1847.392
A191: 営業ＣＦ構成要素 | B191: 10 | G191: 営業キャシュフロー | H191: =+H82 -> 834.094
A192: 営業ＣＦ構成要素 | B192: 11 | G192: グロスキャッシュフロー | H192: =+D110 -> 491.507
A193: 営業ＣＦ構成要素 | B193: 12 | C193: 運転資本 | D193: 運転資本増減 | E193: =+H117 -> -148.92 | F193: ＯＫ | G193: 運転資本増減 | H193: =+H117 -> -148.92
A194: 営業ＣＦ構成要素 | B194: 13 | G194: 其の他流動資産負債増減 | H194: =+D124 -> -4308.067
A195: 投資ＣＦ構成要素 | B195: 14 | G195: 投資キャッシュフロー | H195: =+H184 -> -700
A196: 投資ＣＦ構成要素 | B196: 15 | G196: 有形固定資産増減 | H196: =+D90+D94 -> -2.273736754e-13
A197: 投資ＣＦ構成要素 | B197: 16 | G197: 無形固定資産増減 | H197: =+D91 -> 0
A198: 財務ＣＦ構成の構成要素 | B198: 17 | G198: 投資資産増減 | H198: =+E47 -> 0
A199: 財務ＣＦ構成の構成要素 | B199: 18 | G199: 財務キャッシュフロー | H199: =+H89 -> -54033.342
A200: 計算照合 | B200: 19 | G200: 短期借入金増減 | H200: =+H90 -> 0
... 993 more rows

Sheet Sheet4
A1: 905 | B1: 有限会社 高野製作所
B2: 決算年月日 | C2: 240930
B3: 担当者 | C3: 田中
B4: 貸借表 | C4: 当期末残 | D4: 前期末残 | E4: 前々期末残 | G4: 損益表 | H4: 当期末残 | I4: 前期末残 | J4: 前々期末残
B5: 現金預金 | C5: 9122925 | D5: 11702658 | E5: 9835349 | G5: 売上高 | H5: 23889098 | I5: 28339036 | J5: 37725191
B6: 受取手形 | C6: 0 | D6: 0 | E6: 0 | G6: 材料・仕入 | H6: 3920089 | I6: 4994883 | J6: 7093816
B7: 売掛債権 | C7: 4664572 | D7: 3513195 | E7: 7281330 | G7: 外注・加工 | H7: 0 | I7: 0 | J7: 25389
B8: 棚卸資産 | C8: 0 | D8: 0 | E8: 0 | G8: 経費 | H8: 488213 | I8: 650672 | J8: 661793
B9: その他流動資産 | C9: 160417 | D9: 198917 | E9: 119167 | G9: その他 | H9: 0 | I9: 0 | J9: 0
B10: 流動資産計 | C10: 13947914 | D10: 15414770 | E10: 17235846 | G10: 変動費 | H10: 4408302 | I10: 5645555 | J10: 7780998
B11: 土地建設仮勘定 | C11: 0 | D11: 0 | E11: 0 | G11: 付加価値 | H11: 19480796 | I11: 22693481 | J11: 29944193
B12: 設備資産 | C12: 9805304 | D12: 12761419 | E12: 6611717 | G12: 経営者報酬 | H12: 0 | I12: 0 | J12: 0
B13: その他固定資産 | C13: 229030 | D13: 229030 | E13: 329030 | G13: 従業員給与 | H13: 12960000 | I13: 13460000 | J13: 12960000
B14: 固定資産計 | C14: 10034334 | D14: 12990449 | E14: 6940747 | G14: 退職・法定福利費 | H14: 0 | I14: 0 | J14: 0
B15: 資産計 | C15: 23982248 | D15: 28405219 | E15: 24176593 | G15: 福利厚生費 | H15: 69683 | I15: 171841 | J15: 121845
B16: 支払手形 | C16: 0 | D16: 0 | E16: 0 | G16: 人件費 | H16: 13029683 | I16: 13631841 | J16: 13081845
B17: 買掛金 | C17: 772847 | D17: 621654 | E17: 1399775 | G17: 経営者賃借料
B18: 未払費用 | C18: 1980247 | D18: 1980247 | E18: 1980247 | G18: 賃借料 | H18: 3107200 | I18: 3107200 | J18: 3107200
B19: 短期借入金 | C19: 0 | D19: 0 | E19: 0 | G19: 減価償却費 | H19: 2956115 | I19: 3729089 | J19: 1761117
B20: 前受金 | C20: 0 | D20: 0 | E20: 0 | G20: 租税公課 | H20: 647300 | I20: 700700 | J20: 783000
B21: 割引手形 | C21: 0 | D21: 0 | E21: 0 | G21: 修繕費 | H21: 411979 | I21: 644752 | J21: 861559
B22: 未払税金等 | C22: 70000 | D22: 70000 | E22: 70000 | G22: 電気水道燃料 | H22: 1445810 | I22: 1555517 | J22: 1633229
B23: その他流動負債 | C23: 459810 | D23: 523210 | E23: 642630 | G23: 設備費 | H23: 8568404 | I23: 9737258 | J23: 8146105
B24: 流動負債計 | C24: 3282904 | D24: 3195111 | E24: 4092652 | G24: 交際・会議費 | H24: 208297 | I24: 258379 | J24: 222050
B25: 経営者借入金 | C25: 0 | D25: 0 | E25: 0 | G25: 保険料 | H25: 466368 | I25: 422576 | J25: 426496
B26: 長期借入金 | C26: 27239541 | D26: 27439812 | E26: 19142564 | G26: 広告宣伝費 | H26: 0 | I26: 0 | J26: 0
B27: その他固定負債 | C27: 2245926 | D27: 2245926 | E27: 2245926 | G27: 図書会費教育費 | H27: 89900 | I27: 91450 | J27: 90630
B28: 固定負債計 | C28: 29485467 | D28: 29685738 | E28: 21388490 | G28: 政策費 | H28: 764565 | I28: 772405 | J28: 739176
B29: 負債計 | C29: 32768371 | D29: 32880849 | E29: 25481142 | G29: その他経費 | H29: 1120916 | I29: 1300651 | J29: 1181950
B30: 資本金 | C30: 3000000 | D30: 3000000 | E30: 3000000 | G30: 固定費１ | H30: 23483568 | I30: 25442155 | J30: 23149076
B31: 準備金 | C31: 100000 | D31: 100000 | E31: 100000 | G31: 営業利益 | H31: -4002772 | I31: -2748674 | J31: 6795117
B32: 剰余金 | C32: -11886123 | D32: -7575630 | E32: -4404549 | G32: 金利 | H32: -319130 | I32: -401138 | J32: -295867
B33: 資本計 | C33: -8786123 | D33: -4475630 | E33: -1304549 | G33: 雑収入 | H33: 81409 | I33: 71440 | J33: 87365
B34: 負債資本計 | C34: 23982248 | D34: 28405219 | E34: 24176593 | G34: その他差額 | H34: 0 | I34: 0 | J34: 0
C35: OK | D35: OK | E35: OK | G35: 固定費２ | H35: 23402159 | I35: 25370715 | J35: 23061711
C36: 0 | D36: 0 | E36: 0 | G36: 臨時収益・費用 | H36: 0 | I36: -22709 | J36: 0
B37: 照合 | G37: 税引前利益 | H37: -4240493 | I37: -3101081 | J37: 6586615
B38: 株数 | C38: 60 | D38: 60 | E38: 60 | G38: 法人住民事業税 | H38: 70000 | I38: 70000 | J38: 70000
G39: 純利益 | H39: -4310493 | I39: -3171081 | J39: 6516615
B40: 経営者未収入金
B41: 経営者短期貸付金
B42: 投資 | G42: 税務繰越損失 | H42: 14401763 | I42: 10182059 | J42: 7104082
B43: 経営者未払金 | C43: 2245926 | D43: 2245926 | E43: 2245926 | G43: 経営者報酬 | H43: 12960000 | I43: 13460000 | J43: 12960000
B44: 経営者未払費用 | C44: 1980247 | D44: 1980247 | E44: 1980247
B45: 経営者長期借入金 | C45: 15039541 | D45: 12359812 | E45: 11422564 | G45: 経営者人数 | H45: 4 | I45: 4 | J45: 4
B46: 経営者短期借入金 | G46: 従業員人数
B47: 有利子短期借入金 | G47: 計 | H47: 4 | I47: 4 | J47: 4
B48: 有利子長期借入金 | C48: 12200000 | D48: 15080000 | E48: 7720000
G49: 経営者賃借料 | H49: 2400000 | I49: 2400000 | J49: 2400000
G50: 雑収入 | H50: 81409 | I50: 71440 | J50: 87365
B51: 仕訳伝票総数 | G51: 特別利益 | H51: 0 | I51: 0 | J51: 0
G52: 雑損失 | H52: 0 | I52: 0 | J52: 0
G53: 特別損失 | H53: 0 | I53: 22709 | J53: 0
G54: 受取利息配当 | H54: 800 | I54: 960 | J54: 5760
G55: 事業税
G56: 消費税 | H56: 342300 | I56: 405700 | J56: 540000
G59: 雑収入摘要 | H59: スクラップ | I59: スクラップ | J59: スクラップ
G60: 特別利益摘要
G61: 雑損失摘要
G62: 特別損失摘要

Sheet Sheet2
A1: 604 | B1: 有限会社 植野商店 | H1: １ＣＳＶデータを取り込む２３期分の長期借入金、経営者報酬、経営者賃借料デ－タを入力する． | P1: ２利益計画画策定基準を作成する。3人件費、賃借料、金利を決める | Y1: 0 | AA1: =A1 -> 604 | AB1: 経営財務レポート | AD1: =B1 -> 有限会社 植野商店 | AF1: 決算期 | AG1: =C2 -> 250630 | AH1: TOBARI-KAIKEI | AJ1: 経営者報酬 | AK1: 前々期報酬 | AL1: 前期報酬 | AM1: 当期報酬 | AN1: 次期報酬 | AQ1: 人件費 | AR1: =AF77 -> 3600 | BD1: . | BG1: 事業計画書 | BM1: 2．業績推移と今後の計画 | BO1: 25/6期 | BU1: 小規模同族 | BV1: エンタ－プライズＤＣＦ法による理論上の株主資本価値の計算結果
B2: 決算年月日 | C2: 250630 | H2: 4貸借対照表を増減値、回転率で決め、現金預金を最後にバランスさせる | M2: 5損益計算書の値をバランスさせる。 | Q2: =M9/M10 -> -0.0001819534325 | S2: 損益分岐点売上高＝固定費÷｛1－（変動費÷売上高）｝ | AA2: 住所 | AE2: 電話番号 | AH2: MMTOBARI | AK2: =$AC$13 -> 3600000 | AL2: =$AD$13 -> 3600000 | AM2: =$AE$13 -> 3600000 | AN2: =$AG$13 -> 3600000 | AQ2: 賃借料 | AR2: 1200 | BO2: 次々期以降↓ | BP2: 次期変動比率→ | BR2: =Q87 -> 0.9 | BS2: （単位：万円） | BU2: 企業用 | BV2: 単位千円 ＷＡＣＣ ５．０% | BW2: ＷＡＣ | BX2: =#REF! ->  | BY2: 恒久成長率 | BZ2: 0.01 | CA2: 単位万円
B3: 担当者 | F3: =F35 -> 14534500 | G3: ＜照合 | H3: 比較対象 | L3: 損益表起点↓↓↓ | M3: 当期末材料比率 | N3: =M6/$M$10 -> 1.000181953 | O3: 当期末外注費 | P3: =M7/P10 -> 0 | Q3: 当期末経費 | R3: =M8/M10 -> 0 | T3: 色のセルは次期設定基準数値入力 | AA3: 業種 | AB3: 食品卸 | AC3: 事業内容 | AQ3: 租税公課 | AR3: 290.1 | BG3: 年月日 | BH3: 251010 | BM3: 次々以降目標条件 | BN3: 売上高成長率 | BO3: 0.01 | BP3: 変動比率 | BQ3: =Q87 -> 0.9 | BR3: 固定費増減率 | BS3: 0 | BU3: ５期分 | BV3: 営業フリ－ＣＦ 営業フリ－ＣＦの現在価値 | CA3: 経営者期待額を含むＣＦ
B4: 貸借表 | C4: 当期末残 | D4: 前期末残 | E4: 前々期末残 | F4: 次期末残 | G4: 次期増減 | H4: 当期増減 | I4: 前期増減 | J4: 当期回転率 | K4: 三期回転率 | L4: 損益表 | M4: 当期末残 | N4: 前期末残 | O4: 前々期末残 | P4: 次期末残 | Q4: 三期平均売上 | R4: 財務分析 | S4: 三期平均 | T4: 次期 | U4: 当期 | V4: 前期 | W4: 前々期 | AA4: 代表者氏名 | AB4: 上野芳樹 | AC4: 経営者数 | AD4: =M45 -> 2 | AE4: 経営方針 | AQ4: 純金利 | AR4: 524.254 | BM4: 期 | BN4: 当期 | BO4: 次期 | BP4: ２７／６期 | BQ4: ２８／６期 | BR4: ２９／６期 | BS4: ３０／６期 | BU4: =BO4 -> 次期 | BV4: =BO63 -> 143 | BY4: =INT(BV4/(1+$BX$2)) ->  | CA4: =BO65 -> 623 | CC4: =INT(CA4/$BX$2) -> 
B5: 現金預金 | C5: 23846502 | D5: 25513671 | E5: 29013869 | F5: 34768096 | G5: =F5-C5 -> 10921594 | H5: =C5-D5 -> -1667169 | I5: 選択回転率 | L5: 売上高 | M5: 134374586 | N5: 102623033 | O5: 108862897 | P5: =Q86 -> 85000000 | Q5: =AVERAGE(M5:O5) -> 115286838.7 | R5: 損益分岐点 | S5: =AVERAGE(U5:W5) -> 180946570.3 | T5: =Q84/(1-Q87) -> 85000000 | U5: =M30/(1-U10) -> 190620609.3 | V5: =N30/(1-V10) -> 156028461.7 | W5: =O30/(1-V10) -> 196190639.9 | AA5: 資本金 | AB5: =C30 -> 5000000 | AC5: 従業員数 | AD5: =M46 -> 0 | AE5: 経営計画 | AQ5: 経常利益 | AR5: -2939.041 | BG5: 住所 | BH5: =AB2 -> 0 | BM5: 売上高 | BN5: =M5/10000 -> 13437.4586 | BO5: =P5/10000 -> 8500 | BP5: =INT(BO5*1.03) -> 8755 | BQ5: =INT(BP5*1.03) -> 9017 | BR5: =INT(BQ5*1.03) -> 9287 | BS5: =INT(BR5*1.03) -> 9565 | BU5: =BP4 -> ２７／６期 | BV5: =BP63 -> 578.5 | BY5: =INT(BV5/(1+$BX$2)) ->  | CA5: =BP65 -> 1778.5 | CC5: =INT(CA5/$BX$2) -> 
B6: 受取手形 | C6: 0 | D6: 0 | E6: 0 | G6: =F6-C6 -> 0 | H6: =C6-D6 -> 0 | I6: 0 | J6: =C6/$N$5 -> 0 | K6: =AVERAGE(D6,E6,F6)/$Q$5 -> 0 | L6: 材料・仕入 | M6: 128627734 | N6: 97362559 | O6: 103841869 | P6: =$P$10*N3 -> 76513919.44 | Q6: =AVERAGE(M6:O6)/Q5 -> 0.9536565949 | R6: 損益分離点余裕度 | S6: =AVERAGE(U6:W6) -> -65659731.63 | T6: =P5-T5 -> 0 | U6: =M5-U5 -> -56246023.26 | V6: =N5-V5 -> -53405428.68 | W6: =O5-W5 -> -87327742.94 | AA6: 役員経営者報酬 | AB6: 氏名 | AC6: 前々期報酬 | AD6: 前期報酬 | AE6: 当期報酬 | AF6: 増減 | AG6: 次期報酬 | AH6: コメント．問題点 | AQ6: 積上付加価値 | AR6: 2675.313 | BM6: 売上原価 | BN6: =(M6+M7+M8+M9)/10000 -> 12860.4334 | BO6: =P10/10000 -> 7650 | BP6: =BP5*$BQ$3 -> 7879.5 | BQ6: =BQ5*$BQ$3 -> 8115.3 | BR6: =BR5*$BQ$3 -> 8358.3 | BS6: 8608.5 | BU6: =BQ4 -> ２８／６期 | BV6: =BQ63 -> 604.7 | BY6: =INT(BV6/(1+$BX$2)) ->  | CA6: =BQ65 -> 1804.7
B7: 売掛債権 | C7: 14968131 | D7: 9406931 | E7: 12548969 | F7: =I7*$P$5 -> 12401500 | G7: -2566631 | H7: =C7-D7 -> 5561200 | I7: 0.1459 | J7: =C7/$N$5 -> 0.1458554728 | K7: =AVERAGE(D7,E7,F7)/$Q$5 -> 0.09933889071 | L7: 外注・加工 | M7: 0 | N7: 0 | O7: 0 | P7: =$P$10*P3 -> 0 | Q7: =AVERAGE(M7:O7)/Q5 -> 0 | R7: 余裕割合 | S7: =S6/S5 -> -0.3628680639 | T7: =T6/P5 -> 0 | U7: =U6/M5 -> -0.4185763464 | V7: =V6/N5 -> -0.5204039202 | W7: =W6/O5 -> -0.8021809574 | Y7: 印刷範囲 | AA7: 同 | AB7: =L65 -> 上野芳樹 | AC7: =M65 -> 3600000 | AD7: =N65 -> 3600000 | AE7: =O65 -> 3600000 | AF7: =P65 -> 0 | AG7: =AE7+AF7 -> 3600000 | BG7: 事業者 | BH7: =AA1 -> 604 | BM7: Aうち減価償却費 | BU7: =BR4 -> ２９／６期 | BV7: =BR63 -> 651.7 | CA7: =BR65 -> 2151.7
B8: 棚卸資産 | C8: 67400 | D8: 44000 | E8: 68985 | F8: =I8*$P$5 -> 59500 | G8: -7900 | H8: 23400 | I8: 0.0007 | J8: =C8/$N$5 -> 0.000656772637 | K8: =AVERAGE(D8,E8,F8)/$Q$5 -> 0.0004987126082 | L8: 経費 | M8: 0 | N8: 0 | O8: 0 | P8: =$P$10*R3 -> 0 | Q8: =AVERAGE(M8:O8)/Q5 -> 0 | S8: 人件費，賃借料、金利 | AA8: 同 | AB8: =L66 -> 0 | AC8: =M66 -> 0 | AD8: =N66 -> 0 | AE8: =O66 -> 0 | AF8: =P66 -> 0 | AG8: =AE8+AF8 -> 0 | BH8: =B1 -> 有限会社 植野商店 | BM8: 売上高総利益 | BN8: =M11/10000 -> 577.0252 | BO8: =P11/10000 -> 850 | BP8: =BP5-BP6 -> 875.5 | BQ8: =BQ5-BQ6 -> 901.7 | BR8: =BR5-BR6 -> 928.7 | BS8: 956.5 | BU8: =BS4 -> ３０／６期 | BV8: =BS63 -> 679.5 | CA8: =BS65 -> 1879.5
B9: その他流動資産 | C9: 45000 | D9: 45000 | E9: 6000 | F9: =I9*$P$5 -> 34000 | G9: =F9-C9 -> -11000 | H9: 0 | I9: 0.0004 | J9: =C9/$N$5 -> 0.0004384980514 | K9: =AVERAGE(D9,E9,F9)/$Q$5 -> 0.0002457638154 | L9: その他 | M9: -23400 | N9: 24985 | O9: -51345 | P9: =$P$10*Q2 -> -13919.43758 | Q9: =AVERAGE(M9:O9)/Q5 -> -0.0001438730289 | S9: 三期平均 | T9: 次期 | U9: 当期 | V9: 前期 | W9: 前々期 | AA9: 同 | AB9: 0 | AC9: 0 | AD9: 0 | AE9: 0 | AF9: 0 | AG9: 0 | BM9: 販売管理費 | BN9: =(M23+M28+M29)/10000 -> 458.5543 | BO9: =K13 -> 0 | BP9: =BO9*(1+$BS$3) -> 0 | BQ9: =BP9*(1+$BS$3) -> 0 | BR9: 0 | BS9: 0 | BU9: 計 | BV9: =SUM(BV4:BV8) -> 2657.4 | BY9: =SUM(BY4:BY8) ->  | CA9: =SUM(CA4:CB8) -> 8237.4 | CC9: =SUM(CC4:CD8) ->  | CD9: =CC9-CA9 -> 
B10: 流動資産計 | C10: 38927033 | D10: 35009602 | E10: 41637823 | F10: =SUM(F5:F9) -> 47263096 | G10: =SUM(G5:G9) -> 8336063 | H10: =SUM(H5:H9) -> 3917431 | I10: =D10-E10 -> -6628221 | J10: <<固定資産の部 | L10: 変動費 | M10: 128604334 | N10: 97387544 | O10: 103790524 | P10: =Q85 -> 76500000 | Q10: =AVERAGE(M10:O10) -> 109927467.3 | R10: 変動費率 | S10: =AVERAGE(U10:W10) -> 0.9531492044 | T10: =Q87 -> 0.9 | U10: =M10/M5 -> 0.9570584575 | V10: =N10/N5 -> 0.948983295 | W10: =O10/O5 -> 0.9534058606 | AA10: 同 | AB10: 0 | AC10: 0 | AD10: 0 | AE10: 0 | AF10: 0 | AG10: 0 | BM10: 人件費 | BN10: =M16/10000 -> 360 | BO10: =P16/10000 -> 390 | BP10: =BO10*(1+$BS$3) -> 390 | BQ10: =BP10*(1+$BS$3) -> 390 | BR10: 390 | BS10: 390 | BU10: 継続価値 １２６２５０ 継続価値の現在価値＋ ８９７２４ | BV10: =INT(BV8*(1+$BZ$2)/($BX$2-$BZ$2)) ->  | BW10: 継続価値の現在価値 | BY10: =INT(BV10/(1+$BX$2)) ->  | CA10: =INT(CA8*(1+$BZ$2)/($BX$2-$BZ$2)) ->  | CC10: =INT(CA10/(1+$BX$2)) -> 
B11: 土地建設仮勘定 | C11: 0 | D11: 0 | E11: 0 | F11: =C11+G11 -> 0 | H11: =C11-D11 -> 0 | I11: =D11-E11 -> 0 | L11: 付加価値 | M11: 5770252 | N11: 5235489 | O11: 5072373 | P11: =P5-P10 -> 8500000 | Q11: 5359371.333 | R11: 粗利益率 | S11: =(AVERAGE(U11:W11)) -> 0.04685079565 | T11: =1-T10 -> 0.1 | U11: =M11/M5 -> 0.04294154253 | V11: =N11/N5 -> 0.05101670499 | W11: =O11/O5 -> 0.04659413942 | AB11: 0 | AC11: 0 | AD11: 0 | AE11: 0 | AF11: 0 | AG11: 0 | BE11: 《現況（創業の場合は創業する目的、動機）》 | BM11: うち役員購酬 | BN11: =O71/10000 -> 360 | BO11: =P12/10000 -> 360 | BP11: 360 | BQ11: 360 | BR11: 360 | BS11: 360 | BX11: 事業価値 | BY11: =BY9+BY10 ->  | CC11: =CC9+CC10 ->  | CD11: =CC11-BY11 -> 
B12: 設備資産 | C12: 3616803 | D12: 5168453 | E12: 4157448 | F12: =C12+G12-P19 -> 2116803 | G12: 0 | H12: =C12-D12+M19 -> 0 | I12: =D12-E12+N19 -> 2496102 | L12: 経営者報酬 | M12: 0 | N12: 0 | O12: 0 | P12: =Q71 -> 3600000 | Q12: 0 | R12: 人件費 | S12: =AVERAGE(U12:W12) -> 3893769.667 | T12: =T13+T14 -> 3900000 | U12: =M16 -> 3600000 | V12: =N16 -> 3600000 | W12: =O16 -> 4481309 | AB12: 0 | AC12: 0 | AD12: 0 | AE12: 0 | AF12: 0 | AG12: 0 | BM12: B減価償却費 | BN12: =M19/10000 -> 155.165 | BO12: =P19/10000 -> 150 | BP12: 150 | BQ12: 150 | BR12: 150 | BS12: 150 | BX12: 非事業用資産 | BY12: 0 | CC12: 0
B13: その他固定資産 | C13: 5206664 | D13: 5206664 | E13: 5204714 | F13: =G13+C13 -> 5206664 | G13: 0 | H13: =C13-D13 -> 0 | I13: =D13-E13 -> 1950 | L13: 従業員給与 | M13: 3600000 | N13: 3600000 | O13: 3968970 | P13: =T14 -> 300000 | Q13: 3722990 | R13: 内経営者報酬 | S13: =AVERAGE(U13:W13) -> 3600000 | T13: =Q71 -> 3600000 | U13: =O71 -> 3600000 | V13: =N71 -> 3600000 | W13: =M71 -> 3600000 | AA13: 計 | AC13: =SUM(AC7:AC12) -> 3600000 | AD13: =SUM(AD7:AD12) -> 3600000 | AE13: 3600000 | AF13: =SUM(AF7:AF12) -> 0 | AG13: 3600000 | BM13: 営業利益 | BN13: =M31/10000 -> -241.5291 | BO13: =P31/10000 -> 0 | BP13: =BP8-BP9-BP10 -> 485.5 | BQ13: 511.7 | BR13: 538.7 | BS13: 566.5 | BX13: 企業価値 | BY13: =BY11-BY12 ->  | CC13: =CC11-CC12 ->  | CD13: =CC13-BY13 -> 
B14: 固定資産計 | C14: 8823467 | D14: 10375117 | E14: 9362162 | F14: =SUM(F11:F13) -> 7323467 | G14: =SUM(G11:G13) -> 0 | H14: =SUM(H11:H13) -> 0 | I14: =SUM(I11:I13) -> 2498052 | L14: 退職・法定福利費 | M14: 0 | N14: 0 | O14: 0 | P14: 0 | Q14: =AVERAGE(M14:P14) -> 0 | R14: 其の他人件費 | S14: 293769.6667 | T14: 300000 | U14: =U12-U13 -> 0 | V14: =V12-V13 -> 0 | W14: 881309 | AA14: 経営者賃借料 | AB14: 氏名 | AC14: 前々期賃借料 | AD14: 前期賃借料 | AE14: 当期賃借料 | AF14: 増減 | AG14: 次期賃借料 | AH14: コメント．問題点 | BM14: 営業外収益 | BN14: =M33/10000 -> 0.0504 | BO14: =P33/10000 -> 0 | BP14: 0 | BQ14: 0 | BR14: 0 | BS14: 0 | BX14: 有利子負債 | BY14: =E60/10000 -> 0 | CC14: =BY14 -> 0
B15: 資産計 | C15: 47750500 | D15: 45384719 | E15: 50999985 | F15: =F10+F14 -> 54586563 | G15: =G10+G14 -> 8336063 | H15: =H10+H14 -> 3917431 | I15: =I10+I14 -> -4130169 | J15: 当期回転率 | K15: 三期回転率 | L15: 福利厚生費 | M15: 0 | N15: 0 | O15: 512339 | P15: 0 | Q15: =AVERAGE(M15:P15) -> 128084.75 | R15: 人件費率 | S15: 三期平均 | T15: 次期 | U15: 当期 | V15: 前期 | W15: 前々期 | AB15: =L74 -> 上野歌子 | AC15: =M74 -> 1200000 | AD15: =N74 -> 1200000 | AE15: 1200000 | AF15: =P74 -> 0 | AG15: =AE15+AF15 -> 1200000 | BM15: 営業外費用 | BN15: =M32*-1/10000 -> 52.4254 | BO15: =P32*-1/10000 -> 50 | BP15: 50 | BQ15: 50 | BR15: 50 | BS15: 50 | BV15: 有利子負債残高 － ２４０００ | BX15: 株主資本の価値 | BY15: =BY13-BY14 ->  | CC15: =CC13-CC14 ->  | CD15: =CC15-BY15 -> 
B16: 支払手形 | C16: 0 | D16: 0 | E16: 0 | F16: =$P$5*I16 -> 0 | G16: =F16-C16 -> 0 | H16: =C16-D16 -> 0 | I16: 0 | J16: =D16/$N$5 -> 0 | K16: =AVERAGE(D16,E16,F16)/$Q$5 -> 0 | L16: 人件費 | M16: 3600000 | N16: 3600000 | O16: 4481309 | P16: =P12+P13+P14+P15 -> 3900000 | Q16: 3893769.667 | R16: 人件費率 | S16: =(AVERAGE(U16:W16)) -> 0.03434510965 | T16: =(P16+P17)/P5 -> 0.06 | U16: =M16/M5 -> 0.02679078021 | V16: =N16/N5 -> 0.03507984411 | W16: =O16/O5 -> 0.04116470463 | AB16: =L75 -> 0 | AC16: 0 | AD16: 0 | AE16: 0 | AF16: =P75 -> 0 | AG16: =AE16+AF16 -> 0 | BE16: 《新商品の開発または新役務の内容》 | BM16: C経常利益 | BN16: =BN13+BN14-BN15 -> -293.9041 | BO16: =BO13+BO14-BO15 -> -50 | BP16: =BP13+BP14-BP15 -> 435.5 | BQ16: =BQ13+BQ14-BQ15 -> 461.7 | BR16: 488.7 | BS16: 516.5 | BU16: 参考 | CA16: 経営者期待額を全額フリ－営業ＣＦに含めると
B17: 買掛金 | C17: 14545996 | D17: 9220115 | E17: 11728752 | F17: =$P$5*I17 -> 7633000 | G17: =F17-C17 -> -6912996 | H17: =C17-D17 -> 5325881 | I17: 0.0898 | J17: =D17/$N$5 -> 0.08984449914 | K17: =AVERAGE(D17,E17,F17)/$Q$5 -> 0.08263986688 | L17: 経営者賃借料 | P17: =Q80 -> 1200000 | Q17: <賃借料の内書 | R17: 労働分配率 | S17: =AVERAGE(U17:W17) -> 0.7316594285 | T17: =(P16+P17)/P11 -> 0.6 | U17: =M16/M11 -> 0.6238895632 | V17: =N16/N11 -> 0.6876148532 | W17: 0.8834738691 | AB17: 0 | AC17: 0 | AD17: 0 | AE17: 0 | AF17: 0 | AG17: =AE17+AF17 -> 0 | BM17: 特別損益 | BN17: =M36/10000 -> 0 | BO17: =P36/10000 -> 0 | BP17: 0 | BQ17: 0 | BR17: 0 | BS17: 0 | BU17: 早稲田大学大学院ファイナス研究科教授鈴木一功 | CA17: 価値が多額になる
B18: 未払費用 | C18: 323500 | D18: 323500 | E18: 331750 | F18: =$P$5*I18 -> 272000 | G18: -51500 | H18: 0.1 | I18: 0.0032 | J18: 0.00315231377 | K18: =AVERAGE(D18,E18,F18)/$Q$5 -> 0.002680994092 | L18: 賃借料 | M18: 1200000 | N18: 1200000 | O18: 1200000 | P18: =T18 -> 1200000 | R18: 賃借料 | S18: 2760000 | T18: =T19+T20 -> 1200000 | U18: =M18 -> 1200000 | V18: =N18 -> 1200000 | W18: 5880000 | AB18: 0 | AC18: 0 | AD18: 0 | AE18: 0 | AF18: 0 | AG18: 0 | BM18: 法人税等 | BN18: =M38/10000 -> 7 | BO18: =P38/10000 -> 7 | BP18: 7 | BQ18: 7 | BR18: 7 | BS18: 7 | BU18: 財務から考える企業価値 株主資本価値 ２０１３／６／２６ 日経
B19: 短期借入金 | C19: 0 | D19: 0 | E19: 0 | F19: 0 | G19: 0 | H19: 0 | I19: 0 | J19: 0 | K19: 0 | L19: 減価償却費 | M19: 1551650 | N19: 1485097 | O19: 2131338 | P19: 1500000 | Q19: UTIGAKI | R19: 内経営者賃借料 | S19: 1200000 | T19: =Q80 -> 1200000 | U19: =O80 -> 1200000 | V19: =N80 -> 1200000 | W19: =M80 -> 1200000 | AB19: 0 | AC19: 0 | AD19: 0 | AE19: 0 | AF19: 0 | AG19: 0 | BM19: 当期利益 | BN19: =M39/10000 -> -300.9041 | BO19: =P39/10000 -> -57 | BP19: =BP16+BP17-BP18 -> 428.5 | BQ19: =BQ16+BQ17-BQ18 -> 454.7 | BR19: 481.7 | BS19: 509.5
B20: 前受金 | C20: 0 | D20: 0 | E20: 0 | F20: 0 | G20: =F20-C20 -> 0 | H20: =C20-D20 -> 0 | I20: 0 | J20: 0 | K20: 0 | L20: 租税公課 | M20: 220100 | N20: 62500 | O20: 291420 | P20: 250000 | Q20: =AVERAGE(M20:P20) -> 206005 | R20: 差引外部賃借料 | S20: 1560000 | T20: 0 | U20: =U18-U19 -> 0 | V20: =V18-V19 -> 0 | W20: 4680000 | AB20: 0 | AC20: 0 | AD20: 0 | AE20: 0 | AF20: 0 | AG20: 0 | BM20: 総資産 | BN20: =C15/10000 -> 4775.05 | BO20: =F15/10000 -> 5458.6563 | BP20: =BO20+BP19 -> 5887.1563 | BQ20: =BP20+BQ19 -> 6341.8563 | BR20: =BQ20+BR19 -> 6823.5563 | BS20: =BR20+BS19 -> 7333.0563
B21: 割引手形 | C21: 0 | D21: 0 | E21: 0 | F21: 0 | G21: =F21-C21 -> 0 | H21: =C21-D21 -> 0 | I21: 0 | J21: 0 | K21: 0 | L21: 修繕費 | M21: 0 | N21: 0 | O21: 0 | P21: 0 | Q21: =AVERAGE(M21:P21) -> 0 | R21: 金利 | S21: -437954.3333 | T21: =P32 -> -500000 | U21: =M32 -> -524254 | V21: =N32 -> -432726 | W21: =O32 -> -356883 | AA21: 計 | AC21: =SUM(AC15:AC20) -> 1200000 | AD21: =SUM(AD15:AD20) -> 1200000 | AE21: =SUM(AE15:AE20) -> 1200000 | AF21: =SUM(AF15:AF20) -> 0 | AG21: 1200000 | BM21: 総負債 | BN21: =F29/10000+BN24 -> 1613.7 | BO21: =BO39+BO24 -> 810.88425 | BP21: =BP39+BP24 -> 814.9386712 | BQ21: =BQ39+BQ24 -> 819.0133646 | BR21: 823.1084314 | BS21: 827.2239736
B22: 未払税金等 | C22: 70000 | D22: 70000 | E22: 70000 | F22: 70000 | G22: 0 | H22: 0 | J22: 0.00068210808 | K22: 0.0006071811909 | L22: 電気水道燃料 | M22: 299064 | N22: 284249 | O22: 325423 | P22: 320000 | Q22: =AVERAGE(M22:P22) -> 307184 | R22: 金利負担率 | S22: 0.003798790778 | T22: =P32*-1/P5 -> 0.005882352941 | U22: =U21*-1/M5 -> 0.003901437136 | V22: =V21*-1/N5 -> 0.004216655729 | W22: =W21*-1/O5 -> 0.003278279467 | AA22: 2業績推移単位千円 | AB22: 前々期 | AC22: 前期 | AD22: 当期 | AE22: 次期 | AF22: 前期構成比 | AG22: 前期月平均 | AH22: 次期月平均 | BM22: 自己資本 | BN22: =BN20-BN21 -> 3161.35 | BO22: =BO20-BO21 -> 4647.77205 | BP22: =BP20-BP21 -> 5072.217629 | BQ22: =BQ20-BQ21 -> 5522.842935 | BR22: 6000.447869 | BS22: 6505.832326 | BT22: 次期返済額
B23: その他流動負債 | C23: 257441 | D23: 108500 | E23: 112000 | F23: 93500 | G23: -163941 | H23: 148941 | I23: 0.0011 | J23: 0.001057267524 | K23: 0.0009078804474 | L23: 設備費 | M23: 3270814 | N23: 3031846 | O23: 3948181 | P23: =(SUM(P17:P22)-P17) -> 3270000 | Q23: 3416947 | R23: 設備費率 | S23: 0.0300506674 | T23: =P23/P5 -> 0.03847058824 | U23: =M23/M5 -> 0.02434101639 | V23: =N23/N5 -> 0.02954352363 | W23: 0.03626746218 | AA23: 売上高 | AB23: =O5/1000 -> 108862.897 | AC23: =N5/1000 -> 102623.033 | AD23: =M5/1000 -> 134374.586 | AE23: =P5/1000 -> 85000 | AF23: 1 | AG23: =(AB23+AC23+AD23)/3/12 -> 9607.236556 | AH23: =AE23/12 -> 7083.333333 | BL23: 総負債中の | BM23: 経営者長期借入金 | BN23: =BN38 -> 0 | BO23: =BO38 -> 0 | BP23: =BP38 -> 0 | BQ23: =BQ38 -> 0 | BR23: =BR38 -> 0 | BS23: =BS38 -> 0 | BT23: =I54 -> 0
B24: 流動負債計 | C24: 15196937 | D24: 9722115 | E24: 12242502 | F24: =SUM(F16:F23) -> 8068500 | G24: =SUM(G16:G23) -> -7128437 | H24: =SUM(H16:H23) -> 5474822.1 | I24: 0.05 | K24: =AVERAGE(D24,E24,F24)/$Q$5 -> 0.08683592261 | L24: 交際・会議費 | M24: 19982 | N24: 29686 | O24: 66509 | P24: 20000 | Q24: =AVERAGE(M24:P24) -> 34044.25 | AA24: 営業利益 | AB24: =O31/1000 -> -4936.627 | AC24: =N31/1000 -> -2724.569 | AD24: =M31/1000 -> -2415.291 | AE24: =P31/1000 -> 0 | AF24: =AC24/$AC$23 -> -0.02654929328 | AG24: =(AB24+AC24+AD24)/3/12 -> -279.9024167 | AH24: =AE24/12 -> 0 | BF24: 経営上の課題項目 | BM24: 流動負債 | BN24: =F24/10000 -> 806.85 | BO24: =BN24*(1+$BO$3/2) -> 810.88425 | BP24: =BO24*(1+$BO$3/2) -> 814.9386712 | BQ24: 819.0133646 | BR24: 823.1084314 | BS24: 827.2239736
B25: 経営者借入金 | C25: 0 | D25: 0 | E25: 0 | F25: =G68 -> 0 | G25: =F68 -> 0 | H25: =D25-E25 -> 0 | K25: 0 | L25: 保険料 | M25: 234900 | N25: 288690 | O25: 249060 | P25: 250000 | Q25: =AVERAGE(M25:P25) -> 255662.5 | AA25: 経常利益：営業外収支+- | AB25: =(O31+O32+O33)/1000 -> -5156.214 | AC25: =(N31+N32+N33)/1000 -> -2993.111 | AD25: =(M31+M32+M33)/1000 -> -2939.041 | AE25: =(P31+P32+P33)/1000 -> -500 | AF25: =AC25/$AC$23 -> -0.02916607425 | AG25: =(AB25+AC25+AD25)/3/12 -> -308.0101667 | AH25: -41.66666667 | AJ25: 経営者賃借料 | AK25: 前々賃借料 | AL25: 前期賃借料 | AM25: 当期賃借 | AN25: 次期賃借料 | BE25: （創業の場合は、重点取組項目） | BG25: 課題項目または重点取組項目を踏まえた具体策 | BL25: 調達先 | BM25: 3．借入金・社債の期末残高推移 | BS25: （単位：万円）
B26: 長期借入金 | C26: 0 | D26: 100000 | E26: 0 | F26: =G60 -> 0 | G26: =F70 -> 0 | H26: =D26-E26 -> 100000 | L26: 広告宣伝費 | M26: 0 | N26: 0 | O26: 0 | P26: 0 | Q26: =AVERAGE(M26:P26) -> 0 | AA26: 純利益:税金、雑収支+- | AB26: =O39/1000 -> -4709.458 | AC26: =N39/1000 -> -3194.879 | AD26: =M39/1000 -> -3009.041 | AE26: =P39/1000 -> -570 | AF26: -0.03113218258 | AG26: -303.1493889 | AH26: -47.5 | AK26: =AC21 -> 1200000 | AL26: =AD21 -> 1200000 | AM26: =AE21 -> 1200000 | AN26: =AG21 -> 1200000 | BE26: 〔該当項目に○またはチェック〕 | BL26: 目標
B27: その他固定負債 | C27: 0 | D27: 0 | E27: 0 | F27: =C27+G27 -> 0 | G27: 0 | H27: 0 | L27: 図書会費教育費 | M27: 41800 | N27: 41800 | O27: 63800 | P27: 50000 | Q27: =AVERAGE(M27:P27) -> 49350 | S27: 三期平均 | T27: 次期 | U27: 当期 | V27: 前期 | W27: 前々期 | AA27: アラ利益:売上－原価 | AB27: =O11/1000 -> 5072.373 | AC27: =N11/1000 -> 5235.489 | AD27: =M11/1000 -> 5770.252 | AE27: =P11/1000 -> 8500 | AF27: 0.05101670499 | AG27: 446.6142778 | AH27: 708.3333333 | BD27: 経営全般 | BM27: 調達先 | BN27: 前期実績 | BO27: 今期見込 | BP27: 計画1期目 | BQ27: 計画2期目 | BR27: 計画3期目 | BS27: 最終目標
B28: 固定負債計 | C28: 0 | D28: 100000 | E28: 0 | F28: =SUM(F25:F27) -> 0 | H28: 100000 | L28: 政策費 | M28: 296682 | N28: 360176 | O28: 379369 | P28: =SUM(P24:P27) -> 320000 | Q28: 345409 | R28: 政策費率 | S28: =AVERAGE(U28:W28) -> 0.003067468376 | T28: =P28/P5 -> 0.003764705882 | U28: =M28/M5 -> 0.002207872849 | V28: =N28/N5 -> 0.003509699426 | W28: 0.003484832854 | AA28: １年以内現金化資産と１年以内支払資産との差額 | AC28: =AC108-AB108 -> 1557.391 | AD28: =AD108-AC108 -> 4107.834 | AE28: =AE108-AD108 -> 9799.275 | AF28: =AC28/AC23 -> 0.01517584264 | AG28: =(AB28+AC28+AD28)/3/12 -> 157.3673611 | AH28: =AE28/12 -> 816.60625 | AT28: 前々期 | AU28: 前期 | AV28: 当期 | AW28: 次期 | BJ28: 月返済 | BK28: 月返済 | BN28: ２５／６期 | BO28: ２６／６期 | BP28: ２７／６期 | BQ28: ２８／６期 | BR28: ２９／６期 | BS28: ３０／６期 | BT28: 次期返済額
B29: 負債計 | C29: 15196937 | D29: 9822115 | E29: 12242502 | F29: =F28+F24 -> 8068500 | G29: 次期増減 | H29: -2420387 | L29: その他経費 | M29: 1018047 | N29: 968036 | O29: 1200141 | P29: =P30-P28-P23-P16 -> 1010000 | Q29: 1062074.667 | R29: 他経費率 | S29: =AVERAGE(U29:W29) -> 0.009344484249 | T29: =P29/P5 -> 0.01188235294 | U29: =M29/M5 -> 0.007576187063 | V29: =N29/N5 -> 0.009432931104 | W29: 0.01102433458 | AA29: ３資金の流れ | AB29: 前々期 | AC29: 前期 | AD29: 当期 | AE29: 次期 | AF29: １０財務分析 | AG29: 当期 | AH29: 次期計画 | AS29: 損益分岐点余裕額 | AT29: =AB115 -> -87327.74294 | AU29: =AC115 -> -53405.42868 | AV29: -56246.02326 | AW29: 0 | BF29: 経営戦略の策定 | BJ29: =I54 -> 0 | BK29: =H54 -> 0 | BL29: 既 存 借 入 金 | BM29: =B54 -> 0 | BN29: =E54/10000 -> 0 | BO29: =G54/10000 -> 0 | BP29: 0 | BQ29: 0 | BR29: 0 | BS29: 0 | BT29: =I54 -> 0 | BV29: 早稲田大学大学院ファイナス研究科教授鈴木一功
B30: 資本金 | C30: 5000000 | D30: 5000000 | E30: 5000000 | F30: =C30+G30 -> 5000000 | G30: 0 | H30: 0 | L30: 固定費１ | M30: 8185543 | N30: 7960058 | O30: 10009000 | P30: =Q84 -> 8500000 | Q30: 8718200.333 | R30: 固定費２（総費用比率） | S30: =AVERAGE(U30:W30) -> 0.07680772968 | T30: =P30/P5 -> 0.1 | U30: =U16+U23+U28+U29 -> 0.06091585651 | V30: =V16+V23+V28+V29 -> 0.07756599827 | W30: 0.09194133425 | AA30: 営業活動獲得資金Ａ | AB30: =AB24+O19/1000 -> -2805.289 | AC30: =AC24+N19/1000 -> -1239.472 | AD30: =AD24+M19/1000 -> -863.641 | AE30: =AE24+P19/1000 -> 1500 | AF30: 総資本経常利益率 | AG30: =O83/D34 -> -0.06475838266 | AH30: =Q83/F34 -> 0 | BF30: ＩＴ化の遅れ | BJ30: =I55 -> 0 | BK30: =H55 -> 0 | BL30: 存 | BM30: =B55 -> 0 | BN30: =E55/10000 -> 0 | BO30: =BN30 -> 0 | BP30: 0 | BQ30: 0 | BR30: 0 | BS30: 0 | BV30: 財務から考える企業価値 株主資本価値 ２０１３／６／２６ 日経
B31: 準備金 | C31: 1300000 | D31: 1300000 | E31: 1300000 | F31: =C31+G31 -> 1300000 | G31: 0 | H31: 0 | L31: 営業利益 | M31: -2415291 | N31: -2724569 | O31: -4936627 | P31: =P11-P30 -> 0 | Q31: -3358829 | R31: 売上高営業利益率 | S31: -0.02995693403 | T31: =P31/P5 -> 0 | U31: =M31/M5 -> -0.01797431398 | V31: =N31/N5 -> -0.02654929328 | W31: =O31/O5 -> -0.04534719483 | AA31: 経営者支払資金Ｂ | AB31: =O81/1000 -> 4800 | AC31: =N81/1000 -> 4800 | AD31: =M81/1000 -> 4800 | AE31: =Q81/1000 -> 4800 | AF31: 自己資本経常利益率 | AG31: =AD25/AC77 -> -0.09028323566 | AH31: =AE25/AD77 -> -0.01563303 | BJ31: 0 | BK31: 0 | BL31: 借 | BM31: =B56 -> 0 | BN31: =E56/10000 -> 0 | BO31: =G56/10000 -> 0 | BP31: 0 | BQ31: 0 | BR31: 0 | BS31: 0
B32: 剰余金 | C32: 26253563 | D32: 29262604 | E32: 32457483 | F32: =C32+G32 -> 25683563 | G32: =P39 -> -570000 | H32: -3194879 | L32: 金利 | M32: -524254 | N32: -432726 | O32: -356883 | P32: -500000 | Q32: =AVERAGE(M32:P32) -> -453465.75 | AA32: 合計獲得資金Ａ＋Ｂ | AB32: =AB30+AB31 -> 1994.711 | AC32: =AC30+AC31 -> 3560.528 | AD32: =AD30+AD31 -> 3936.359 | AE32: =AE30+AE31 -> 6300 | AF32: 財務レバレッジ | AG32: =AC82/AC77 -> 1.466828685 | AH32: =AD82/AD77 -> 1.252270205 | BF32: 事業の「選択と集中」 | BJ32: 0 | BK32: 0 | BL32: 入 | BM32: 0 | BN32: 0 | BO32: =G57/10000 -> 0 | BP32: 0 | BQ32: 0 | BR32: 0 | BS32: 0
B33: 資本計 | C33: 32553563 | D33: 35562604 | E33: 38757483 | F33: =SUM(F30:F32) -> 31983563 | H33: -3194879 | L33: 雑収入 | M33: 504 | N33: 164184 | O33: 137296 | P33: 0 | Q33: =AVERAGE(M33:P33) -> 75496 | Z33: . | AA33: 必要設備資産の＋－ | AB33: ********** | AC33: =D74/1000 -> 2496.102 | AD33: =C74 -> 0 | AE33: =F74 -> 0 | AF33: 自己資本比率 | AG33: =AC77/AC82 -> 0.6817428718 | AH33: =AD77/AD82 -> 0.7985497027 | BJ33: 0 | BK33: 0 | BL33: 金 | BM33: 0 | BN33: 0 | BO33: =G58/10000 -> 0 | BP33: 0 | BQ33: 0 | BR33: 0 | BS33: 0
B34: 負債資本計 | C34: 47750500 | D34: 45384719 | E34: 50999985 | F34: =F33+F29 -> 40052063 | H34: -5615266 | L34: その他差額 | M34: 0 | N34: 0 | O34: 0 | P34: =P31+P32+P33 -> -500000 | Q34: ←経常利益 | R34: 売上高経常利益率 | S34: -0.03280078876 | T34: =P34/P5 -> -0.005882352941 | U34: =(M31+M32+M33)/M5 -> -0.02187200041 | V34: =(N31+N32+N33)/N5 -> -0.02916607425 | W34: -0.04736429162 | AA34: フリーに使える資金、経営者支払を含む | AC34: =AC32-AC33 -> 1064.426 | AD34: =AD32-AD33 -> 3936.359 | AE34: =AE32-AE33 -> 6300 | AF34: 固定比率 | AG34: =AC56/AC77 -> 0.2710445858 | AH34: =AD56/AD77 -> 0.2289759587 | BF34: 事業承継・後継者問題 | BJ34: 0 | BK34: 0 | BM34: 0 | BN34: =E59/10000 -> 0 | BO34: 0 | BP34: 0 | BQ34: 0 | BR34: 0 | BS34: 0
C35: OK | D35: OK | E35: OK | F35: =F15-F34 -> 14534500 | L35: 固定費２ | M35: 8185039 | N35: 7795874 | O35: 9871704 | P35: =P30+P32*-1+P33 -> 9000000 | Q35: 8617539 | S35: 三期平均↑ | T35: 次期目標値↑ | AA35: 銀行等借入金＋－ | AB35: ********** | AC35: =D60-C60 -> 0 | AD35: =E60-D60 -> 0 | AE35: =F60 -> 0 | AF35: 営業ＣＦマージン | AG35: =AD34/AD23 -> 0.02929392467 | AH35: =AE32/AE23 -> 0.07411764706 | BL35: 小計 | BN35: =SUM(BN29:BN34) -> 0 | BO35: =SUM(BO29:BO34) -> 0 | BP35: =SUM(BP29:BP34) -> 0 | BQ35: 0 | BR35: 0 | BS35: 0
C36: 0 | D36: 0 | E36: 0 | F36: 照合 | H36: 0 | L36: 臨時収益・費用 | M36: 0 | N36: -131768 | O36: 516756 | P36: 0 | Q36: =AVERAGE(M36:P36) -> 96247 | AA36: 経営者支払を除けば自由に使える資金 | AC36: =AC34-AC35 -> 1064.426 | AD36: =AD34-AD35 -> 3936.359 | AE36: 6300 | AF36: ＣＦ有利子負債倍率 | AG36: =AD39/AD32 -> 0 | AH36: =AE39/AE32 -> 0 | BL36: 新規借入金 | BM36: 政策金融公庫 | BN36: 0 | BO36: 0 | BP36: 0 | BQ36: 0 | BR36: 0 | BS36: 0
B37: 照合 | H37: 0 | I37: =E37-F37 -> 0 | L37: 税引前利益 | M37: -2939041 | N37: -3124879 | O37: -4639458 | P37: =P34+P36 -> -500000 | Q37: -3567792.667 | AA37: 現実の経営者支払 | AB37: ********** | AC37: =AC31 -> 4800 | AD37: =AD31 -> 4800 | AE37: 4800 | AF37: 固定費率 | AG37: =U30 -> 0.06091585651 | AH37: =T30 -> 0.1 | AT37: 前々期 | AU37: 前期 | AV37: 当期 | AW37: 次期 | BF37: その他
B38: 株数 | C38: 500 | D38: 500 | E38: 500 | H38: 0 | I38: 500 | L38: 法人住民事業税 | M38: 70000 | N38: 70000 | O38: 70000 | P38: 70000 | Q38: =AVERAGE(M38:P38) -> 70000 | S38: 三期平均 | T38: 次期 | U38: 当期 | V38: 前期 | W38: 前々期 | AA38: 差引現実自由資金 | AB38: ********** | AC38: =AC36-AC37 -> -3735.574 | AD38: =AD36-AD37 -> -863.641 | AE38: 1500 | AF38: 人件費率 | AG38: =U16 -> 0.02679078021 | AH38: =T16 -> 0.06 | AS38: 有利子長期借入金残 | AT38: =AB39 -> 0 | AU38: =AC39 -> 0 | AV38: 0 | AW38: 0 | BL38: 無利子経営者長期借入金 | BN38: =E68/10000 -> 0 | BO38: =G68/10000 -> 0 | BP38: 0 | BQ38: 0 | BR38: 0 | BS38: 0
H39: 0 | I39: 0 | L39: 純利益 | M39: -3009041 | N39: -3194879 | O39: -4709458 | P39: =P37-P38 -> -570000 | Q39: -3637792.667 | R39: 売上高純利益率 | S39: =Q39/Q5 -> -0.03155427548 | T39: =Q39/P5 -> -0.04279756078 | U39: =N39/N5 -> -0.03113218258 | V39: =O39/O5 -> -0.0432604508 | W39: -0.006705882353 | AA39: 有利子長期借入金残 | AB39: =C60/1000 -> 0 | AC39: =D60/1000 -> 0 | AD39: =E60/1000 -> 0 | AE39: =G60/1000 -> 0 | AF39: 設備費率 | AG39: =U23 -> 0.02434101639 | AH39: =T23 -> 0.03847058824 | BD39: 売上・収益 | BL39: D合計 | BN39: =BN35+BN38 -> 0 | BO39: =BO35+BO38 -> 0 | BP39: 0 | BQ39: 0 | BR39: 0 | BS39: 0
B40: 経営者未収入金 | H40: 0 | I40: 0 | AA40: 営業獲得資金１０倍が借入金限度TOS | AC40: =IF(AC30<0,0,AC30*10) -> 0 | AD40: =IF(AD30<0,0,AD30*10) -> 0 | AE40: 15000 | AF40: 政策費率 | AG40: =U28 -> 0.002207872849 | AH40: =T28 -> 0.003764705882 | BF40: 営業力の強化 | BL40: Ｄ／(A+B+(C*1/2)) | BN40: =BN39/(BN42+BN43+IF(BN44>0,BN44/2,BN44)) -> 0 | BO40: =BO39/(BO42+BO43+IF(BO44>0,BO44/2,BO44)) -> 0 | BP40: 0 | BQ40: 0 | BR40: 0 | BS40: 0
B41: 経営者短期貸付金 | H41: 0 | I41: 0 | AA41: 借入金余裕額が適合すると仮定 | AC41: =AC40-AC39 -> 0 | AD41: =AD40-AD39 -> 0 | AE41: =AE40-AE39 -> 15000 | AF41: 其の他経費率 | AG41: =U29 -> 0.007576187063 | AH41: =T29 -> 0.01188235294 | BF41: 販路拡大 | BL41: D | BM41: 借入金合計 | BN41: =BN39 -> 0 | BO41: =BO39 -> 0 | BP41: 0 | BQ41: 0 | BR41: 0 | BS41: 0
B42: 投資 | H42: 0 | I42: 0 | L42: 税務繰越損失 | M42: 48455647 | N42: 56792324 | O42: 59188569 | AA42: ４バランシシート資金の使途 | AB42: 前期 | AC42: 当期 | AD42: 次期計画 | AE42: 資金の源泉 | AF42: 前期 | AG42: 当期 | AH42: 次期計画 | BF42: 市場の競争激化 | BL42: Ａ | BM42: 売原価中償却費 | BN42: =BN7 -> 0 | BO42: =BO7 -> 0 | BP42: 0 | BQ42: 0 | BR42: 0 | BS42: 0
B43: 経営者未払金 | H43: 0 | I43: 0 | L43: 経営者報酬 | M43: 3600000 | N43: 3600000 | O43: 3600000 | AA43: 現金預金 | AB43: =D5/1000 -> 25513.671 | AC43: =C5/1000 -> 23846.502 | AD43: =F5/1000 -> 34768.096 | AE43: 買掛債務 | AF43: =D17/1000 -> 9220.115 | AG43: =C17/1000 -> 14545.996 | AH43: =F16+F17/1000 -> 7633 | BF43: 商品開発力 | BL43: Ｂ | BM43: 販管費中償却費 | BN43: =BN12 -> 155.165 | BO43: =BO12 -> 150 | BP43: 150 | BQ43: 150 | BR43: 150 | BS43: 150
B44: 経営者未払費用 | C44: 323500 | D44: 323500 | E44: 331750 | H44: -8250 | I44: 331750 | AA44: 売掛金と受取手形 | AB44: =D7/1000 -> 9406.931 | AC44: =C7/1000 -> 14968.131 | AD44: =F7/1000 -> 12401.5 | AE44: 未払費用 | AF44: =D18/1000 -> 323.5 | AG44: =C18/1000 -> 323.5 | AH44: =F18/1000 -> 272 | BF44: 採算分析 | BL44: Ｃ | BM44: 経常利益 | BN44: =BN16 -> -293.9041 | BO44: =BO16 -> -50 | BP44: 435.5 | BQ44: 461.7 | BR44: 488.7 | BS44: 516.5
B45: 経営者長期借入金 | D45: 100000 | H45: 100000 | I45: 0 | L45: 経営者人数 | M45: 2 | N45: 2 | O45: 2 | P45: 3 | Q45: =AVERAGE(N45:P45) -> 2.333333333 | AA45: 棚卸資産、在庫 | AB45: =D8/1000 -> 44 | AC45: =C8/1000 -> 67.4 | AD45: =F8/1000 -> 59.5 | AE45: 短期借入金 | AF45: =D19/1000 -> 0 | AG45: =C19/1000 -> 0 | AH45: =F19/1000 -> 0 | AK45: 前々期 | AL45: 前期 | AM45: 当期 | AN45: 次期 | BF45: 原価・経費の削減
B46: 経営者短期借入金 | H46: 0 | I46: 0 | L46: 従業員人数 | P46: 1 | Q46: =AVERAGE(N46:P46) -> 1 | AA46: その他流動資産 | AB46: =D9/1000 -> 45 | AC46: =C9/1000 -> 45 | AD46: =F9/1000 -> 34 | AE46: 前受金 | AF46: =D20/1000 -> 0 | AG46: =C20/1000 -> 0 | AH46: =F20/1000 -> 0 | AK46: =AB23 -> 108862.897 | AL46: =AC23 -> 102623.033 | AM46: 134374.586 | AN46: 85000 | AS46: 資産の部 | BF46: その他（ ） | BL46: 4．借入の負担の推移【】
B47: 有利子短期借入金 | H47: 0 | I47: 0 | L47: 計 | M47: 2 | N47: 2 | O47: 2 | P47: =P45+P46 -> 4 | Q47: =AVERAGE(N47:P47) -> 2.666666667 | AA47: 流動資産計１年以内現金化 | AB47: =SUM(AB43:AB46) -> 35009.602 | AC47: =SUM(AC43:AC46) -> 38927.033 | AD47: =SUM(AD43:AD46) -> 47263.096 | AE47: 未払税金等 | AF47: =D22/1000 -> 70 | AG47: =C22/1000 -> 70 | AH47: =F22/1000 -> 70 | AS47: 現金預金 | AT47: =AC43 -> 23846.502 | BE47: 人材・マネジメント
B48: 有利子長期借入金 | H48: 0 | I48: 0 | AA48: 土地建設仮勘定 | AB48: =D11/1000 -> 0 | AC48: =C11/1000 -> 0 | AD48: =F11/1000 -> 0 | AE48: その他流動負債 | AF48: =D23/1000 -> 108.5 | AG48: =C23/1000 -> 257.441 | AH48: =F23/1000 -> 93.5 | AS48: 売上債権 | AT48: =AC44 -> 14968.131 | BF48: 管理者層の育成 | BM48: 以下の式で算出された推定借入負担年数の推移
L49: 経営者賃借料 | M49: 1200000 | N49: 1200000 | O49: 1200000 | AA49: 建物、機械、器具、車両等 | AB49: =D12/1000 -> 5168.453 | AC49: =C12/1000 -> 3616.803 | AD49: =F12/1000 -> 2116.803 | AE49: 流動負債計 | AF49: =SUM(AF43:AF48) -> 9722.115 | AG49: =SUM(AG43:AG48) -> 15196.937 | AH49: =SUM(AH43:AH48) -> 8068.5 | AS49: 棚卸資産 | AT49: 67.4 | BF49: 必要な人材の採用 | BM49: Ｄ／(A+B+(C*1/2)) | BO49: Ｃが欠損の場合は１／２を乗じない
L50: 雑収入 | M50: 504 | N50: 164184 | O50: 137296 | Q50: =AVERAGE(N50:P50) -> 150740 | AA50: その他固定資産の内容 | AE50: 銀行等長期借入金 | AF50: =D60/1000 -> 0 | AG50: =E60/1000 -> 0 | AH50: =G60/1000 -> 0 | AS50: その他流動資産 | AT50: =AC46 -> 45 | BF50: 店舗マネジメントの向上 | BM50: 前期実績 | BN50: 今期見込 | BO50: 計画１期目 | BP50: 計画２期目 | BQ50: 計画３期目 | BR50: 最終目標
B51: 仕訳伝票総数 | L51: 特別利益 | M51: 0 | N51: 31000 | O51: 684443 | AA51: 差入保証金 | AE51: その他固定負債 | AF51: =D27/1000 -> 0 | AG51: =C27/1000 -> 0 | AH51: =F27 -> 0 | AS51: 土地 | AT51: =AC48 -> 0 | BM51: ／期 | BN51: ／期 | BO51: ／期 | BP51: ／期 | BQ51: ／期 | BR51: ／期
B52: 長期借入金明細 | C52: 勘定科目明細、借入金より転記 | L52: 雑損失 | M52: 0 | N52: 0 | O52: 0 | Q52: 0 | AA52: 保険積立金 | AE52: 固定負債計 | AF52: =AF50+AF51 -> 0 | AG52: =AG50+AG51 -> 0 | AH52: =AH50+AH51 -> 0 | AR52: =AA50 -> その他固定資産の内容 | AS52: 投資 | AT52: =AC49 -> 3616.803 | BF52: その他 | BM52: 年 | BN52: 年 | BO52: 年 | BP52: 年 | BQ52: 年 | BR52: 年
B53: 有利子長期借入金内訳 | C53: 前々期 | D53: 前期 | E53: 当期 | F53: 次期増減 | G53: 次期 | H53: 月額 | I53: 次期月額 | L53: 特別損失 | M53: 0 | N53: 162768 | O53: 167687 | Q53: 165227.5 | AA53: 施設利用権 | AE53: 負債合計 | AF53: =AF49+AF52 -> 9722.115 | AG53: =AG49+AG52 -> 15196.937 | AH53: =AH49+AH52 -> 8068.5 | AS53: 其の他固定資産 | AT53: =AC55 -> 5206.664 | BM53: =BN40 -> 0 | BN53: =BO40 -> 0 | BO53: 0 | BP53: 0 | BQ53: 0 | BR53: 0
C54: 0 | E54: 0 | F54: 0 | G54: =E54+F54 -> 0 | L54: 受取利息配当 | M54: 1866 | N54: 2018 | O54: 4201 | Q54: 3109.5 | AA54: その他 | AE54: 資本金 | AF54: =D30/1000 -> 5000 | AG54: =C30/1000 -> 5000 | AH54: =F30/1000 -> 5000 | BE54: 財務
G55: =E55+F55 -> 0 | L55: 事業税 | AA55: その他固定資産 | AB55: =D13/1000 -> 5206.664 | AC55: =C13/1000 -> 5206.664 | AD55: =F13/1000 -> 5206.664 | AE55: その他剰余金 | AF55: =D31/1000+D32/1000 -> 30562.604 | AG55: =C31/1000+C32/1000 -> 27553.563 | AH55: =F32/1000+F31/1000 -> 26983.563
G56: 0 | L56: 消費税 | M56: 156500 | N56: 7600 | O56: 112000 | Q56: 59800 | AA56: 固定資産計 | AB56: =AB48+AB49+AB55 -> 10375.117 | AC56: =AC48+AC49+AC55 -> 8823.467 | AD56: =AD48+AD49+AD55 -> 7323.467 | AE56: 経営者長期借入金 | AF56: =D68/1000 -> 100 | AG56: =E68/1000 -> 0 | AH56: =G68/1000 -> 0 | BL56: フリ－キヤッシュフロ－ | BN56: 今期 | BO56: 計画１期目 | BP56: 計画２期目 | BQ56: 計画３期目 | BR56: 計画４期目 | BS56: 計画５期目
G57: 0 | AA57: 資産の部合計 | AB57: =AB47+AB56 -> 45384.719 | AC57: =AC47+AC56 -> 47750.5 | AD57: =AD47+AD56 -> 54586.563 | AE57: 資本合計 | AF57: =AF55+AF56+AF54 -> 35662.604 | AG57: =AG55+AG56+AG54 -> 32553.563 | AH57: =AH55+AH56+AH54 -> 31983.563 | BL57: FCF | BM57: 営業利益 | BO57: =BO13 -> 0 | BP57: =BP13 -> 485.5 | BQ57: =BQ13 -> 511.7 | BR57: =BR13 -> 538.7 | BS57: =BS13 -> 566.5 | BT57: =BT13 -> 0
G58: 0 | P58: 2 | AA58: 照合 | AB58: =AB57-D15/1000 -> 0 | AC58: =AC57-C15/1000 -> 0 | AD58: =AD57-F15/1000 -> 0 | AE58: 負債資本合計 | AF58: =(AF57+AF53) -> 45384.719 | AG58: =AG57+AG53 -> 47750.5 | AH58: =AH57+AH53 -> 40052.063 | BM58: 税金 | BO58: =BO18 -> 7 | BP58: =BP18 -> 7 | BQ58: =BQ18 -> 7 | BR58: =BR18 -> 7 | BS58: =BS18 -> 7
G59: 0 | L59: 雑収入摘要 | AA59: 税務繰越欠損金 | AB59: =N42/1000 -> 56792.324 | AC59: =O42/1000 -> 59188.569 | AE59: 照合 | AF59: =D34/1000-AF58 -> 0 | AG59: =C34/1000-AG58 -> 0 | AH59: =F34/1000-AH58 -> 0 | BM59: 減価償却費 | BO59: =BO7 -> 0 | BP59: =BP7 -> 0 | BQ59: =BQ7 -> 0 | BR59: =BR7 -> 0 | BS59: =BS7 -> 0
B60: 計 | C60: =SUM(C54:C59) -> 0 | D60: =SUM(D54:D59) -> 0 | E60: 0 | F60: 0 | G60: =SUM(G54:G59) -> 0 | I60: =SUM(I54:I59) -> 0 | L60: 特別利益摘要 | AA60: ５経営診断用データ | AB60: 2 | AD60: 単位千円 | BM60: 減価償却費 | BO60: =BO12 -> 150 | BP60: =BP12 -> 150 | BQ60: =BQ12 -> 150 | BR60: =BR12 -> 150 | BS60: =BS12 -> 150
B61: 経営者長期借入金内訳 | C61: 前々期 | D61: 前期 | E61: 当期 | F61: 増減 | G61: 次期 | L61: 雑損失摘要 | AA61: バランスシートから | AB61: 金額単位千円 | AC61: 決算書項目内容入力 | AE61: ６比較損益計算書 | AH61: 単位千円 | AS61: 負債資本の部 | BM61: 計 | BO61: =BO57-BO58+BO59+BO60 -> 143 | BP61: =BP57-BP58+BP59+BP60 -> 628.5 | BQ61: 654.7 | BR61: 681.7 | BS61: 709.5
B62: 上野歌子 | C62: 0 | D62: 100000 | E62: 0 | F62: 0 | G62: =E62+F62 -> 0 | L62: 特別損失摘要 | AF62: 当期 | AG62: 次期計画 | AH62: 増減 | AS62: 支払債務 | AT62: =AG43 -> 14545.996 | BM62: 設備投資 | BO62: =G12/10000 -> 0 | BP62: 50 | BQ62: 50 | BR62: 30 | BS62: 30
G63: =E63+F63 -> 0 | L63: 経営者報酬内訳 | AA63: 流動資産合計 | AB63: =AC47 -> 38927.033 | AC63: 流動負債合計 | AD63: =(AG49) -> 15196.937 | AE63: 売上高 | AF63: =M5/1000 -> 134374.586 | AG63: =P5/1000 -> 85000 | AH63: =AG63-AF63 -> -49374.586 | AS63: 未払費用 | AT63: =AG44 -> 323.5 | BM63: 差引計 | BO63: =BO61-BO62 -> 143 | BP63: =BP61-BP62 -> 578.5 | BQ63: 604.7 | BR63: 651.7 | BS63: 679.5
G64: 0 | L64: 氏名 | M64: 前々期 | N64: 前期 | O64: 当期 | P64: 増減 | Q64: 次期 | AA64: 現金・預金 | AB64: =AC43 -> 23846.502 | AC64: 短期借入金 | AD64: =AG45 -> 0 | AE64: 売上総利益 | AF64: =M11/1000 -> 5770.252 | AG64: =P11/1000 -> 8500 | AH64: =AG64-AF64 -> 2729.748 | AJ64: 経常利益 | AK64: 前々期 | AL64: 前期 | AM64: 当期 | AN64: 次期 | AS64: 短期借入金 | AT64: 0 | BM64: 経営者期待額 | BO64: =(AG13+AG21)/10000 -> 480 | BP64: 1200 | BQ64: 1200 | BR64: 1500 | BS64: 1200
L65: 上野芳樹 | M65: 3600000 | N65: 3600000 | O65: 3600000 | Q65: =O65+P65 -> 3600000 | AA65: 受取手形（割引分を除く） | AB65: =C6 -> 0 | AC65: 長期借入金・社債 | AD65: =AG50 -> 0 | AE65: 営業利益 | AF65: =M31/1000 -> -2415.291 | AG65: =P31/1000 -> 0 | AH65: =AG65-AF65 -> 2415.291 | AK65: =AB25 -> -5156.214 | AL65: =AC25 -> -2993.111 | AM65: -2939.041 | AN65: -500 | AS65: 前受金 | AT65: 0 | BM65: 再計 | BO65: =BO63+BO64 -> 623 | BP65: =BP63+BP64 -> 1778.5 | BQ65: 1804.7 | BR65: 2151.7 | BS65: 1879.5
G66: 0 | Q66: =O66+P66 -> 0 | AA66: 売掛金 | AB66: =AC44 -> 14968.131 | AC66: 資本合計 | AD66: =AG57 -> 32553.563 | AE66: 営業外収支 | AF66: =M32/1000+M33/1000 -> -523.75 | AG66: =P32/1000+P33/1000 -> -500 | AH66: 23.75 | AS66: 未払税金等 | AT66: 70
G67: 0 | Q67: 0 | AA67: 棚卸資産 | AB67: =AC45 -> 67.4 | AC67: 減価償却費 | AD67: =M19/1000 -> 1551.65 | AE67: 経常利益 | AF67: =AF65+AF66 -> -2939.041 | AG67: =AG65+AG66 -> -500 | AH67: 2439.041 | AS67: その他流動負債 | AT67: 257.441
B68: 計 | C68: =SUM(C62:C67) -> 0 | D68: =SUM(D62:D67) -> 100000 | E68: 0 | F68: 0 | G68: =SUM(G62:G67) -> 0 | Q68: 0 | AA68: 固定資産合計 | AB68: =AC56 -> 8823.467 | AC68: 金利 | AD68: =M32/1000 -> -524.254 | AE68: 人件費 | AF68: =M16/1000 -> 3600 | AG68: =P16/1000 -> 3900 | AH68: 300 | AS68: 有利子長期借入金 | AT68: =AG50 -> 0
Q69: 0 | AA69: 固定資産合計 | AC69: 前期売上高 | AD69: =N5/1000 -> 102623.033 | AE69: 設備費 | AF69: =M23/1000 -> 3270.814 | AG69: =P23/1000 -> 3270 | AH69: -0.814 | AS69: その他固定負債 | AT69: =AG51 -> 0
B70: 合計 | C70: =C60+C68 -> 0 | D70: =D60+D68 -> 100000 | E70: 0 | F70: 0 | G70: 0 | Q70: 0 | AA70: 有形固定資産合計 | AB70: =(AC48+AC49) -> 3616.803 | AC70: 受取手形割引高 | AE70: 政策費 | AF70: =M28/1000 -> 296.682 | AG70: =P28/1000 -> 320 | AH70: =AG70-AF70 -> 23.318 | AS70: 資本金 | AT70: =AG54 -> 5000
B71: 照合 | C71: =C70-C26 -> 0 | D71: =D70-D26 -> 0 | E71: =E70-E26 -> 0 | G71: =G70-G26 -> 0 | L71: 計 | M71: =SUM(M65:M70) -> 3600000 | N71: =SUM(N65:N70) -> 3600000 | O71: 3600000 | P71: 0 | Q71: =SUM(Q65:Q70) -> 3600000 | AA71: 土地建設勘定* | AB71: =AC48 -> 0 | AC71: 受取手形裏書譲渡高 | AE71: 其の他経費 | AF71: =M29/1000 -> 1018.047 | AG71: =P29/1000 -> 1010 | AH71: =AG71-AF71 -> -8.047 | AS71: その他剰余金 | AT71: =AG55 -> 27553.563
B72: 借入金増減 | D72: =D70-C70 -> 100000 | E72: =E70-D70 -> -100000 | G72: =G70-E70 -> 0 | L72: 経営者賃借料内訳 | AA72: 資産合計 | AB72: =AC57 -> 47750.5 | AC72: 期末従業員数 | AD72: =AD4+AD5 -> 2 | AE72: 固定費計 | AF72: =M30/1000 -> 8185.543 | AG72: =P30/1000 -> 8500 | AH72: =AG72-AF72 -> 314.457 | AS72: 無利子長期借入金 | AT72: 0
C73: 当期末 | D73: 前期末 | E73: 前々期末 | F73: 次期末 | L73: 氏名 | M73: 前々期 | N73: 前期 | O73: 当期 | P73: 増減 | Q73: 次期 | AA73: 前期総資産 | AB73: =AB57 -> 45384.719 | AC73: 前期純資本 | AD73: =AF57 -> 35662.604 | AE73: 付加価値とは企業が事業の結果生み出した価値、貢献利益
B74: 設備資産増減 | C74: =C12-D12+M19 -> 0 | D74: =D12-E12+N19 -> 2496102 | E74: ＊＊＊＊＊＊ | F74: =F12-C12+P19 -> 0 | L74: 上野歌子 | M74: 1200000 | N74: 1200000 | O74: 1200000 | Q74: =O74+P74 -> 1200000 | AA74: ７ 資本及び負債構成 | AB74: 前期 | AC74: 当期 | AD74: 次期 | AE74: ８ 付加価値 | AF74: 当期 | AG74: 次期計画 | AH74: 増減
I75: 次期月額 | Q75: =O75+P75 -> 0 | AA75: 決算上出資者持分 | AB75: =D33/1000 -> 35562.604 | AC75: =C33/1000 -> 32553.563 | AD75: =F33/1000 -> 31983.563 | AE75: 変動費 | AF75: =M10/1000 -> 128604.334 | AG75: =P10/1000 -> 76500 | AH75: =AG75-AF75 -> -52104.334
Q76: 0 | AA76: 経営者長期借入金 | AB76: =D68/1000 -> 100 | AC76: =E68/1000 -> 0 | AD76: =G68/1000 -> 0 | AE76: 限界利益 | AF76: =M11/1000 -> 5770.252 | AG76: =P11/1000 -> 8500 | AH76: =AG76-AF76 -> 2729.748
Q77: 0 | AA77: 修正実質出資者持分 | AB77: =AB75+AB76 -> 35662.604 | AC77: =AC75+AC76 -> 32553.563 | AD77: =AD75+AD76 -> 31983.563 | AE77: 1人件費 | AF77: =M16/1000 -> 3600 | AG77: =P16/1000 -> 3900 | AH77: 300
Q78: 0 | AA78: 銀行等長期借入金 | AB78: =AD91/1000 -> 0 | AC78: =AE91/1000 -> 0 | AD78: =AG91/1000 -> 0 | AE78: 2賃借料 | AF78: =M18/1000 -> 1200 | AG78: =(P17+P18)/1000 -> 2400 | AH78: 1200
M79: 0 | N79: 0 | Q79: 0 | AA79: 其の他負債 | AB79: =AF51 -> 0 | AC79: =AG51 -> 0 | AD79: =AH51/1000 -> 0 | AE79: ３租税公課 | AF79: =(M20+M38)/1000 -> 290.1 | AG79: =(P20+P38)/1000 -> 320 | AH79: 29.9
L80: 計 | M80: =SUM(M74:M79) -> 1200000 | N80: =SUM(N74:N79) -> 1200000 | O80: 1200000 | P80: 0 | Q80: =SUM(Q74:Q79) -> 1200000 | AA80: 実質固定負債 | AB80: =AB78+AB79 -> 0 | AC80: =AC78+AC79 -> 0 | AD80: =AD78+AD79 -> 0 | AE80: ４支払利息 | AF80: =M32*-1/1000 -> 524.254 | AG80: =P32*-1/1000 -> 500 | AH80: -24.254
L81: 経営者期待総額 | M81: =M71+M80 -> 4800000 | N81: =N71+N80 -> 4800000 | O81: 4800000 | P81: 0 | Q81: =Q71+Q80 -> 4800000 | AA81: 流動負債 | AB81: =AF49 -> 9722.115 | AC81: =AG49 -> 15196.937 | AD81: =AH49 -> 8068.5 | AE81: ５経常利益 | AF81: =AF67 -> -2939.041 | AG81: =AG67 -> -500 | AH81: 2439.041 | BL81: 8
L82: 次期計画数値 | M82: 前々期 | N82: 前期 | O82: 当期 | P82: 前期比増減 | Q82: 次期目標 | R82: 計画増減 | S82: 各基準のバランスと過去デ－タで試行錯誤で決定する。 | AA82: 資本負債合計 | AB82: =AB77+AB80+AB81 -> 45384.719 | AC82: =AC77+AC80+AC81 -> 47750.5 | AD82: 40052.063 | AE82: 積上付加価値 | AF82: =AF77+AF78+AF79+AF80+AF81 -> 2675.313 | AG82: =AG77+AG78+AG79+AG80+AG81 -> 6620 | AH82: 3944.687
L83: 営業利益 | M83: =O31+O32+O33 -> -5156214 | N83: =N31+N32+N33 -> -2993111 | O83: =M31+M32+M33 -> -2939041 | P83: =O83-N83 -> 54070 | Q83: 0 | R83: =Q83-O83 -> 2939041 | S83: 第1基準目標営業利益 | AA83: 銀行等長期借入金 | AC83: 前々期 | AD83: 前期 | AE83: 当期 | AF83: 増減 | AG83: 次期残高 | AH83: コメント．問題点
L84: 固定費１ | M84: =O30 -> 10009000 | N84: =N30 -> 7960058 | O84: =M30 -> 8185543 | P84: =O84-N84 -> 225485 | Q84: 8500000 | R84: =Q84-O84 -> 314457 | S84: 第２基準予定固定費１ | Z84: 1 | AA84: =B54 -> 0 | AC84: =C54 -> 0 | AD84: =D54 -> 0 | AE84: =E54 -> 0 | AF84: =F54 -> 0 | AG84: =G54 -> 0
L85: 予定変動費 | M85: =O10 -> 103790524 | N85: =N10 -> 97387544 | O85: =M10 -> 128604334 | P85: =O85-N85 -> 31216790 | Q85: =Q86*Q87 -> 76500000 | R85: -52104334 | S85: 計画固定費増減率 | T85: =R84/Q84 -> 0.03699494118 | Z85: 2 | AA85: 0 | AC85: =C55 -> 0 | AD85: =D55 -> 0 | AE85: 0 | AF85: =F55 -> 0 | AG85: =G55 -> 0 | AK85: 前々期 | AL85: 前期 | AM85: 当期 | AN85: 次期
L86: 売上高 | M86: =O5 -> 108862897 | N86: =N5 -> 102623033 | O86: =M5 -> 134374586 | P86: =O86-N86 -> 31751553 | Q86: =(Q83+Q84)/(1-Q87) -> 85000000 | R86: -49374586 | S86: 計画売上高増減率 | T86: =R86/Q86 -> -0.5808774824 | Z86: 3 | AA86: 0 | AC86: =C56 -> 0 | AD86: 0 | AE86: 0 | AF86: 0 | AG86: 0 | AK86: =AB30 -> -2805.289 | AL86: =AC30 -> -1239.472 | AM86: -863.641 | AN86: 1500
L87: 変動比率 | M87: =M85/M86 -> 0.9534058606 | N87: =N85/N86 -> 0.948983295 | O87: 0.9570584575 | P87: =O87-N87 -> 0.00807516246 | Q87: 0.9 | R87: -0.05705845747 | S87: 第３基準予定変動比率 | Z87: 4 | AA87: 0 | AC87: =C57 -> 0 | AD87: 0 | AE87: 0 | AF87: 0 | AG87: 0
S88: 次に試算表に移動 | Z88: 5 | AA88: 0 | AC88: =C58 -> 0 | AD88: 0 | AE88: 0 | AF88: =F58 -> 0 | AG88: =G58 -> 0
L89: 参照用コピ－貼付 | Z89: 6 | AA89: 0 | AC89: =C59 -> 0 | AD89: 0 | AE89: 0 | AF89: 0 | AG89: 0
AC90: 単位円 | AD90: 単位円 | AE90: 単位円 | AF90: 単位円 | AG90: 単位円
AA91: 銀行等長期借入金計 | AC91: =C60 -> 0 | AD91: =D60 -> 0 | AE91: 0 | AF91: 0 | AG91: 0
Z92: 1 | AA92: =B62 -> 上野歌子 | AC92: =C62 -> 0 | AD92: =D62 -> 100000 | AE92: 0 | AF92: 0 | AG92: 0
Z93: 2 | AA93: =B63 -> 0 | AC93: =C63 -> 0 | AD93: =D63 -> 0 | AE93: =E63 -> 0 | AF93: =F63 -> 0 | AG93: =G63 -> 0
Z94: 3 | AA94: =B64 -> 0 | AC94: 0 | AD94: =D64 -> 0 | AE94: 0 | AF94: 0 | AG94: 0
Z95: 4 | AA95: =B65 -> 0 | AC95: 0 | AD95: 0 | AE95: 0 | AF95: 0
Z96: 5 | AA96: =B66 -> 0 | AC96: 0 | AD96: 0 | AE96: 0 | AF96: 0 | AG96: 0
Z97: 6 | AC97: 0 | AD97: 0 | AE97: 0 | AF97: 0 | AG97: 0
AA98: 経営者長借入金計 | AC98: 0 | AD98: 100000 | AE98: 0 | AF98: 0 | AG98: 0
AA99: 長期借入金合計 | AC99: =C70 -> 0 | AD99: =D70 -> 100000 | AE99: 0 | AF99: 0 | AG99: 0
AA100: その他固定負債 | AC100: =E27 -> 0 | AD100: =D27 -> 0 | AE100: =C27 -> 0 | AF100: =F27 -> 0 | AG100: =AE100-AF100 -> 0
AA101: 固定負債合計 | AC101: =AC99+AC100 -> 0 | AD101: =AD99+AD100 -> 100000 | AE101: 0 | AF101: 0 | AG101: 0
AA102: １０企業価値計算 | AB102: 有利子負債コスト | AC102: 株式資本コスト | AD102: 計画１期ＦＣＦ | AE102: 計画２期ＦＣＦ | AF102: 計画３期ＦＣＦ | AG102: 計画４期ＦＣＦ | AH102: 計画５期ＦＣＦ
AA103: 利率 | AB103: 0.018 | AC103: 0.02 | AD103: =BO63*10 -> 1430 | AE103: =BP63*10 -> 5785 | AF103: =BQ63*10 -> 6047 | AG103: =BR63*10 -> 6517 | AH103: =BS63 -> 679.5
AA104: 加重平均計算 | AB104: ＷＡＣ | AC104: =#REF! ->  | AD104: 有利子負債 | AE104: =E60 -> 0 | AF104: 実質株主資本 | AG104: =AC77 -> 32553.563 | AH104: 株式出資口数
AA105: 恒久成長率１％仮定 | AB105: 企業価値 | AC105: 会計上の価額 | AD105: 超過価値 | AE105: 有利子負債 | AF105: 純企業価値 | AG105: 一株当企業価値 | AH105: 3500
AA106: 営業ＣＦによる | AB106: =BY13*10 ->  | AC106: =AG58 -> 47750.5 | AD106: =AB106-AC106 ->  | AE106: =AG50 -> 0 | AF106: =AB106-AE106 ->  | AG106: =AF106/AH105 ->  | AH106: コメント．問題点
AA107: １1損益分岐点分析 | AB107: 前々期 | AC107: 前期 | AD107: 当期 | AE107: 次期 | AF107: 前期月額 | AG107: 当期月額 | AH107: 次期月額
Z108: =f ->  | AA108: 運転資本 | AB108: =C10/1000-C24/1000 -> 23730.096 | AC108: =D10/1000-D24/1000 -> 25287.487 | AD108: =E10/1000-E24/1000 -> 29395.321 | AE108: =F10/1000-F24/1000 -> 39194.596 | AF108: =AC108/12 -> 2107.290583 | AG108: =AD108/12 -> 2449.610083 | AH108: =AE108/12 -> 3266.216333 | AK108: 借入金返済原資 | AL108: 前期 | AM108: 当期 | AN108: 次期
AA109: 固定費 | AB109: =O30/1000 -> 10009 | AC109: =N30/1000 -> 7960.058 | AD109: =M30/1000 -> 8185.543 | AE109: =P30/1000 -> 8500 | AF109: =AC109/12 -> 663.3381667 | AG109: =AD109/12 -> 682.1285833 | AH109: =AE109/12 -> 708.3333333 | AI109: =F24-F10 -> -39194596 | AL109: =AC36 -> 1064.426 | AM109: =AD36 -> 3936.359 | AN109: =AE36 -> 6300
AA110: 金利 | AB110: =(O32*-1)/1000 -> 356.883 | AC110: =N32*-1/1000 -> 432.726 | AD110: =M32*-1/1000 -> 524.254 | AE110: =P32*-1/1000 -> 500 | AF110: 36.0605 | AG110: 43.68783333 | AH110: 41.66666667
AA111: 雑収入 | AB111: =O33/1000 -> 137.296 | AC111: =N33/1000 -> 164.184 | AD111: =M33/1000 -> 0.504 | AE111: =P33/1000 -> 0 | AF111: 13.682 | AG111: 0.042 | AH111: 0
AA112: 総費用 | AB112: =AB109+AB110-AB111 -> 10228.587 | AC112: =AC109+AC110-AC111 -> 8228.6 | AD112: 8709.293 | AE112: =AE109+AE110-AE111 -> 9000 | AF112: 685.7166667 | AG112: 725.7744167 | AH112: 750
AA113: 限界利益率 | AB113: =O10/O5 -> 0.9534058606 | AC113: =N10/N5 -> 0.948983295 | AD113: =M10/M5 -> 0.9570584575 | AE113: =P10/P5 -> 0.9
AA114: 損益分岐点売上高 | AB114: =W5/1000 -> 196190.6399 | AC114: =V5/1000 -> 156028.4617 | AD114: =U5/1000 -> 190620.6093 | AE114: =T5/1000 -> 85000 | AF114: 13002.37181 | AG114: 15885.05077 | AH114: =AE114/12 -> 7083.333333
AA115: 余裕額 | AB115: =W6/1000 -> -87327.74294 | AC115: =V6/1000 -> -53405.42868 | AD115: =U6/1000 -> -56246.02326 | AE115: =T6/1000 -> 0
AA116: 余裕割合 | AB116: =W7 -> -0.8021809574 | AC116: =V7 -> -0.5204039202 | AD116: =U7 -> -0.4185763464 | AE116: =T7 -> 0

Sheet Sheet3
A1: 604 | B1: 有限会社 植野商店
B2: 決算年月日 | C2: 240630
B3: 担当者 | C3: 大川内
B4: 貸借表 | C4: 当期末残 | D4: 前期末残 | E4: 前々期末残 | G4: 損益表 | H4: 当期末残 | I4: 前期末残 | J4: 前々期末残
B5: 現金預金 | C5: 25513671 | D5: 29013869 | E5: 32027518 | G5: 売上高 | H5: 102623033 | I5: 108862897 | J5: 119786241
B6: 受取手形 | C6: 0 | D6: 0 | E6: 0 | G6: 材料・仕入 | H6: 97362559 | I6: 103841869 | J6: 113439894
B7: 売掛債権 | C7: 9406931 | D7: 12548969 | E7: 8799458 | G7: 外注・加工 | H7: 0 | I7: 0 | J7: 0
B8: 棚卸資産 | C8: 44000 | D8: 68985 | E8: 17640 | G8: 経費 | H8: 0 | I8: 0 | J8: 0
B9: その他流動資産 | C9: 45000 | D9: 6000 | E9: 135431 | G9: その他 | H9: 24985 | I9: -51345 | J9: 200518
B10: 流動資産計 | C10: 35009602 | D10: 41637823 | E10: 40980047 | G10: 変動費 | H10: 97387544 | I10: 103790524 | J10: 113640412
B11: 土地建設仮勘定 | C11: 0 | D11: 0 | E11: 0 | G11: 付加価値 | H11: 5235489 | I11: 5072373 | J11: 6145829
B12: 設備資産 | C12: 5168453 | D12: 4157448 | E12: 5806230 | G12: 経営者報酬 | H12: 0 | I12: 0 | J12: 0
B13: その他固定資産 | C13: 5206664 | D13: 5204714 | E13: 5206634 | G13: 従業員給与 | H13: 3600000 | I13: 3968970 | J13: 4635700
B14: 固定資産計 | C14: 10375117 | D14: 9362162 | E14: 11012864 | G14: 退職・法定福利費 | H14: 0 | I14: 0 | J14: 0
B15: 資産計 | C15: 45384719 | D15: 50999985 | E15: 51992911 | G15: 福利厚生費 | H15: 0 | I15: 512339 | J15: 30441
B16: 支払手形 | C16: 0 | D16: 0 | E16: 0 | G16: 人件費 | H16: 3600000 | I16: 4481309 | J16: 4666141
B17: 買掛金 | C17: 9220115 | D17: 11728752 | E17: 8053720 | G17: 経営者賃借料
B18: 未払費用 | C18: 323500 | D18: 331750 | E18: 331750 | G18: 賃借料 | H18: 1200000 | I18: 1200000 | J18: 1200000
B19: 短期借入金 | C19: 0 | D19: 0 | E19: 0 | G19: 減価償却費 | H19: 1485097 | I19: 2131338 | J19: 1904472
B20: 前受金 | C20: 0 | D20: 0 | E20: 0 | G20: 租税公課 | H20: 62500 | I20: 291420 | J20: 617740
B21: 割引手形 | C21: 0 | D21: 0 | E21: 0 | G21: 修繕費 | H21: 0 | I21: 0 | J21: 308255
B22: 未払税金等 | C22: 70000 | D22: 70000 | E22: 70000 | G22: 電気水道燃料 | H22: 284249 | I22: 325423 | J22: 502967
B23: その他流動負債 | C23: 108500 | D23: 112000 | E23: 70500 | G23: 設備費 | H23: 3031846 | I23: 3948181 | J23: 4533434
B24: 流動負債計 | C24: 9722115 | D24: 12242502 | E24: 8525970 | G24: 交際・会議費 | H24: 29686 | I24: 66509 | J24: 203805
B25: 経営者借入金 | C25: 0 | D25: 0 | E25: 0 | G25: 保険料 | H25: 288690 | I25: 249060 | J25: 289175
B26: 長期借入金 | C26: 100000 | D26: 0 | E26: 0 | G26: 広告宣伝費 | H26: 0 | I26: 0 | J26: 0
B27: その他固定負債 | C27: 0 | D27: 0 | E27: 0 | G27: 図書会費教育費 | H27: 41800 | I27: 63800 | J27: 111800
B28: 固定負債計 | C28: 100000 | D28: 0 | E28: 0 | G28: 政策費 | H28: 360176 | I28: 379369 | J28: 604780
B29: 負債計 | C29: 9822115 | D29: 12242502 | E29: 8525970 | G29: その他経費 | H29: 968036 | I29: 1200141 | J29: 1264494
B30: 資本金 | C30: 5000000 | D30: 5000000 | E30: 5000000 | G30: 固定費１ | H30: 7960058 | I30: 10009000 | J30: 11068849
B31: 準備金 | C31: 1300000 | D31: 1300000 | E31: 1300000 | G31: 営業利益 | H31: -2724569 | I31: -4936627 | J31: -4923020
B32: 剰余金 | C32: 29262604 | D32: 32457483 | E32: 37166941 | G32: 金利 | H32: -432726 | I32: -356883 | J32: -488116
B33: 資本計 | C33: 35562604 | D33: 38757483 | E33: 43466941 | G33: 雑収入 | H33: 164184 | I33: 137296 | J33: 153463
B34: 負債資本計 | C34: 45384719 | D34: 50999985 | E34: 51992911 | G34: その他差額 | H34: 0 | I34: 0 | J34: 0
C35: OK | D35: OK | E35: OK | G35: 固定費２ | H35: 7795874 | I35: 9871704 | J35: 10915386
C36: 0 | D36: 0 | E36: 0 | G36: 臨時収益・費用 | H36: -131768 | I36: 516756 | J36: -175292
B37: 照合 | G37: 税引前利益 | H37: -3124879 | I37: -4639458 | J37: -5432965
B38: 株数 | C38: 500 | D38: 500 | E38: 500 | G38: 法人住民事業税 | H38: 70000 | I38: 70000 | J38: 70000
G39: 純利益 | H39: -3194879 | I39: -4709458 | J39: -5502965
B40: 経営者未収入金
B41: 経営者短期貸付金
B42: 投資 | G42: 税務繰越損失 | H42: 56792324 | I42: 53680368 | J42: 49048010
B43: 経営者未払金 | G43: 経営者報酬 | H43: 3600000 | I43: 3600000 | J43: 3600000
B44: 経営者未払費用
B45: 経営者長期借入金 | C45: 100000 | D45: 0 | E45: 0 | G45: 経営者人数 | H45: 2 | I45: 2 | J45: 2
B46: 経営者短期借入金 | G46: 従業員人数 | H46: 0 | I46: 1 | J46: 1
B47: 有利子短期借入金 | G47: 計 | H47: 2 | I47: 3 | J47: 3
B48: 有利子長期借入金
G49: 経営者賃借料 | H49: 1200000 | I49: 1200000 | J49: 1200000
G50: 雑収入 | H50: 164184 | I50: 137296 | J50: 153463
B51: 仕訳伝票総数 | C51: 584 | G51: 特別利益 | H51: 31000 | I51: 684443 | J51: 68000
G52: 雑損失 | H52: 0 | I52: 0 | J52: 0
G53: 特別損失 | H53: 162768 | I53: 167687 | J53: 243292
G54: 受取利息配当 | H54: 2018 | I54: 4201 | J54: 25186
G55: 事業税
G56: 消費税 | H56: 7600 | I56: 112000 | J56: -31431
G59: 雑収入摘要
G60: 特別利益摘要
G61: 雑損失摘要
G62: 特別損失摘要

Sheet Sheet5
A1: 総合的収益力（チカラは） | B1: =+#REF! ->  | C1: 経常利益/総資本*
A2: 経常的収益力（チカラは） | B2: =+#REF! ->  | C2: 経常利益/売上高* | D2: 経常利益率
A3: 安定力は（ユトリは） | B3: =+#REF! ->  | C3: 自己資本/総資本* | D3: 自己資本率
A4: 安定力は（ムリ・ムダは） | B4: =+#REF! ->  | C4: 流動資産/流動負債* | D4: 流動比率
A5: 効率力（ムリ・ムダは） | B5: =+#REF! ->  | C5: 売掛債権/月売上* | D5: 売掛債権回転月数
A6: 効率力（ムリ・ムダは） | B6: =+#REF! ->  | C6: 棚卸資産/月売上* | D6: 棚卸資産回転月数
A7: 生産力は（チカラは） | B7: =+#REF! ->  | C7: 設備資産/人員 | D7: 労働装備率
A8: 生産力は（チカラは） | B8: =+#REF! ->  | C8: 人件費/粗利益 | D8: 労働分配率
A9: 安定力（ユトリは） | B9: =+#REF! ->  | C9: （月売上高1-損益分岐点/12）/月売上高
A10: 成長力は（ノビは） | B10: =+#REF! ->  | C10: ,(当期売上高－前期売上高）／前期売上高
A11: 成長力は（ノビは） | B11: =+#REF! ->  | C11: （当期粗利益-前期粗利益）/前期粗利益
A12: 商品力は（チカラは） | B12: =+#REF! ->  | C12: 粗利益/売上高* | D12: アラ利益率
A13: 金融力は（カネは） | B13: =+#REF! ->  | C13: 固定負債/月商 | D13: 有利子借入金月商倍率
A14: 金融力は（カネは） | B14: =+#REF! ->  | C14: 有利子借入金/フリーＣＦ
A15: 収益力・安定力（チカラは） | B15: =+#REF! ->  | C15: 営業ＣＦ/粗利益 | D15: ＣＦマージン（粗利益対）
